Body,Body Name,Date,Transaction Number,Invoice Number,Amount,Supplier Name,Supplier ID ,VAT Registration Number ,Expense Area,Expense Type,Expense Code,Purchase Order
http://statistics.data.gov.uk/id/local-authority/29UP,Tonbridge & Malling Borough Council,7/3/2023,0041035644/1,41035644, 15.00,BNP Paribas,01360500,,Bank Charges,Banking Arrangements,D43QK000044222,
http://statistics.data.gov.uk/id/local-authority/29UP,Tonbridge & Malling Borough Council,7/3/2023,0041035646/1,41035646, 2569.81,National Westminster Bank Plc,00069400,,Bank Charges,Banking Arrangements,D43QK000044222,
http://statistics.data.gov.uk/id/local-authority/29UP,Tonbridge & Malling Borough Council,7/5/2023,0011046437/3,11046437, 140.00,Windsor Print Production Limited,01187500,,Marketing,Information & Publicity,D32MJ000044215,
http://statistics.data.gov.uk/id/local-authority/29UP,Tonbridge & Malling Borough Council,7/5/2023,0011046438/3,11046438, 450.00,Windsor Print Production Limited,01187500,,Purchases,TIC Stock Account,K18AX000001002,
http://statistics.data.gov.uk/id/local-authority/29UP,Tonbridge & Malling Borough Council,7/5/2023,0011046439/3,11046439, 676.65,The Knight Shop International,01738800,,Purchases,TIC Stock Account,K18AX000001002,
http://statistics.data.gov.uk/id/local-authority/29UP,Tonbridge & Malling Borough Council,7/5/2023,0011046441/3,11046441, 450.00,C. S. Mitchell LTD,01704800,,Initiatives,UK Shared Prosperity Fund,D52TH000048135,
http://statistics.data.gov.uk/id/local-authority/29UP,Tonbridge & Malling Borough Council,7/5/2023,0011046442/1,11046442, 50.00,Gemteq Ltd T/A Smarter Society,01904900,,Economic Development Expenses,Eco Dev & Reg Gen Bus Support,D52TD000048050,
http://statistics.data.gov.uk/id/local-authority/29UP,Tonbridge & Malling Borough Council,7/5/2023,0011046443/3,11046443, 533.82,Countryside Art Ltd,01462400,,Purchases,TIC Stock Account,K18AX000001002,
http://statistics.data.gov.uk/id/local-authority/29UP,Tonbridge & Malling Borough Council,7/5/2023,0011046444/3,11046444, 21350.00,Francis Taylor Building,01688700,,Other Planning Enq - Legal Cos,Legal Sals&Overheads,D01ARDR0044146,
http://statistics.data.gov.uk/id/local-authority/29UP,Tonbridge & Malling Borough Council,7/5/2023,0011046445/3,11046445, 74.88,Royal Mail,00086200,,Rents,Conduct of Elections,D31MG000022001,
http://statistics.data.gov.uk/id/local-authority/29UP,Tonbridge & Malling Borough Council,7/5/2023,0011046447/3,11046447, 1204.40,Sellick Partnership Group Limited,01336800,,Temporary Staff,Legal Sals&Overheads,D01ARDR0011300,
http://statistics.data.gov.uk/id/local-authority/29UP,Tonbridge & Malling Borough Council,7/5/2023,0011046448/1,11046448, 250.00,REDACTED PERSONAL DATA,01750300,,Economic Development Expenses,Eco Dev & Reg Gen Bus Support,D52TD000048050,
http://statistics.data.gov.uk/id/local-authority/29UP,Tonbridge & Malling Borough Council,7/5/2023,0011046449/1,11046449, 5000.00,Davss,01439200,,Community Safety Initiatives,Community Safety,D30MA000048134,
http://statistics.data.gov.uk/id/local-authority/29UP,Tonbridge & Malling Borough Council,7/5/2023,0011046450/3,11046450, 651.60,Encore Envelopes Ltd,01750600,,Stationery,Electoral Registration,D31MF000043003,
http://statistics.data.gov.uk/id/local-authority/29UP,Tonbridge & Malling Borough Council,7/5/2023,0011046451/3,11046451, 1217.80,Sellick Partnership Group Limited,01336800,,Temporary Staff,Legal Sals&Overheads,D01ARDR0011300,
http://statistics.data.gov.uk/id/local-authority/29UP,Tonbridge & Malling Borough Council,7/5/2023,0011046452/3,11046452, 1204.40,Sellick Partnership Group Limited,01336800,,Temporary Staff,Legal Sals&Overheads,D01ARDR0011300,
http://statistics.data.gov.uk/id/local-authority/29UP,Tonbridge & Malling Borough Council,7/5/2023,0011046453/1,11046453, 5000.00,Look Ahead,01746900,,Community Safety Initiatives,Community Safety,D30MA000048134,
http://statistics.data.gov.uk/id/local-authority/29UP,Tonbridge & Malling Borough Council,7/5/2023,0011046455/1,11046455, 278.46,KM Media Group Ltd,00053900,,Advertising General,Public Accountability,D29LRZ99944216,110070296
http://statistics.data.gov.uk/id/local-authority/29UP,Tonbridge & Malling Borough Council,7/5/2023,0011046456/1,11046456, 2320.00,Access Intelligence Media and Comms Ltd,00971600,,Information & Publicity,Information & Publicity,D32MJ000044076,110070321
http://statistics.data.gov.uk/id/local-authority/29UP,Tonbridge & Malling Borough Council,7/5/2023,0011046457/1,11046457, 1862.67,GSF SANDYLIGHT LTD,01705300,,Temporary Staff,Admin & Prop Sals&Overheads,D01AADA0511300,
http://statistics.data.gov.uk/id/local-authority/29UP,Tonbridge & Malling Borough Council,7/5/2023,0011046459/1,11046459, 171.00,R C Brady (UK) Ltd,00131500,,Purchases,TIC Stock Account,K18AX000001002,
http://statistics.data.gov.uk/id/local-authority/29UP,Tonbridge & Malling Borough Council,7/5/2023,0011046460/1,11046460, 491.51,LexisNexis UK,00016100,,Reference Books & Publications,Legal Sals&Overheads,D01AR000043010,
http://statistics.data.gov.uk/id/local-authority/29UP,Tonbridge & Malling Borough Council,7/5/2023,0011046460/2,11046460, 514.49,LexisNexis UK,00016100,,Reference Books & Publications,Legal Sals&Overheads,D01AR000043010,
http://statistics.data.gov.uk/id/local-authority/29UP,Tonbridge & Malling Borough Council,7/5/2023,0011046461/1,11046461, 1405.35,TMS Protection Ltd,01744300,,Office Security,Ton Castle Council Chamber,D21FC000044047,
http://statistics.data.gov.uk/id/local-authority/29UP,Tonbridge & Malling Borough Council,7/5/2023,0011046461/2,11046461, 583.20,TMS Protection Ltd,01744300,,Office Security,Ton Castle Council Chamber,D21FC000044047,
http://statistics.data.gov.uk/id/local-authority/29UP,Tonbridge & Malling Borough Council,7/5/2023,0011046461/3,11046461, 2997.00,TMS Protection Ltd,01744300,,Office Security,Tonbridge Gateway,D23TG000044047,
http://statistics.data.gov.uk/id/local-authority/29UP,Tonbridge & Malling Borough Council,7/5/2023,0011046462/1,11046462, 127.00,KCC Street Lighting Dept.,01890600,,Initiatives,UK Shared Prosperity Fund,D52TH000048135,110070273
http://statistics.data.gov.uk/id/local-authority/29UP,Tonbridge & Malling Borough Council,7/5/2023,0012008765/1,12008765, 40380.00,NEC Software Solutions UK Ltd,01073900,202159745,Software Hire & Support,Information Technology,D27KD000044059,410032428
http://statistics.data.gov.uk/id/local-authority/29UP,Tonbridge & Malling Borough Council,7/5/2023,0012008766/1,12008766, 198.00,Phoenix Software Ltd,00077400,755349015,Software Hire & Support,Information Technology,D27KD000044059,410032432
http://statistics.data.gov.uk/id/local-authority/29UP,Tonbridge & Malling Borough Council,7/5/2023,0012008767/10,12008767, 9.00,O2 UK Ltd,01268000,,Mobile Telephones,Admin & Prop Sals&Overheads,D01AADA1245013,
http://statistics.data.gov.uk/id/local-authority/29UP,Tonbridge & Malling Borough Council,7/5/2023,0012008767/11,12008767, 3.00,O2 UK Ltd,01268000,,Mobile Telephones,Chief Exec Sals&Overheads,D01ACDC0045013,
http://statistics.data.gov.uk/id/local-authority/29UP,Tonbridge & Malling Borough Council,7/5/2023,0012008767/12,12008767, 3.00,O2 UK Ltd,01268000,,Mobile Telephones,Chief Exec Sals&Overheads,D01ACDC0145013,
http://statistics.data.gov.uk/id/local-authority/29UP,Tonbridge & Malling Borough Council,7/5/2023,0012008767/13,12008767, 3.00,O2 UK Ltd,01268000,,Mobile Telephones,Chief Exec Sals&Overheads,D01ACDC0245013,
http://statistics.data.gov.uk/id/local-authority/29UP,Tonbridge & Malling Borough Council,7/5/2023,0012008767/14,12008767, 3.00,O2 UK Ltd,01268000,,Mobile Telephones,Technical Sals&Overheads,D01AEDE0045013,
http://statistics.data.gov.uk/id/local-authority/29UP,Tonbridge & Malling Borough Council,7/5/2023,0012008767/15,12008767, 6.20,O2 UK Ltd,01268000,,Mobile Telephones,Technical Sals&Overheads,D01AEDE0145013,
http://statistics.data.gov.uk/id/local-authority/29UP,Tonbridge & Malling Borough Council,7/5/2023,0012008767/16,12008767, 9.20,O2 UK Ltd,01268000,,Mobile Telephones,Technical Sals&Overheads,D01AEDE0245013,
http://statistics.data.gov.uk/id/local-authority/29UP,Tonbridge & Malling Borough Council,7/5/2023,0012008767/17,12008767, 42.00,O2 UK Ltd,01268000,,Mobile Telephones,Technical Sals&Overheads,D01AEDE0445013,
http://statistics.data.gov.uk/id/local-authority/29UP,Tonbridge & Malling Borough Council,7/5/2023,0012008767/18,12008767, 3.20,O2 UK Ltd,01268000,,Mobile Telephones,Technical Sals&Overheads,D01AEDE0545013,
http://statistics.data.gov.uk/id/local-authority/29UP,Tonbridge & Malling Borough Council,7/5/2023,0012008767/19,12008767, 12.00,O2 UK Ltd,01268000,,Mobile Telephones,Finance Sals&Overheads,D01AFDF0045013,
http://statistics.data.gov.uk/id/local-authority/29UP,Tonbridge & Malling Borough Council,7/5/2023,0012008767/20,12008767, 6.00,O2 UK Ltd,01268000,,Mobile Telephones,Finance Sals&Overheads,D01AFDF0945013,
http://statistics.data.gov.uk/id/local-authority/29UP,Tonbridge & Malling Borough Council,7/5/2023,0012008767/21,12008767, 12.00,O2 UK Ltd,01268000,,Mobile Telephones,St Scene & Leis Sals&Overheads,D01AGDG0045013,
http://statistics.data.gov.uk/id/local-authority/29UP,Tonbridge & Malling Borough Council,7/5/2023,0012008767/22,12008767, 12.00,O2 UK Ltd,01268000,,Mobile Telephones,St Scene & Leis Sals&Overheads,D01AGDG0145013,
http://statistics.data.gov.uk/id/local-authority/29UP,Tonbridge & Malling Borough Council,7/5/2023,0012008767/23,12008767, 9.00,O2 UK Ltd,01268000,,Mobile Telephones,St Scene & Leis Sals&Overheads,D01AGDG0445013,
http://statistics.data.gov.uk/id/local-authority/29UP,Tonbridge & Malling Borough Council,7/5/2023,0012008767/24,12008767, 36.00,O2 UK Ltd,01268000,,Mobile Telephones,St Scene & Leis Sals&Overheads,D01AGDG2045013,
http://statistics.data.gov.uk/id/local-authority/29UP,Tonbridge & Malling Borough Council,7/5/2023,0012008767/25,12008767, 9.00,O2 UK Ltd,01268000,,Mobile Telephones,Planning Sals&Overheads,D01AJDJ0045013,
http://statistics.data.gov.uk/id/local-authority/29UP,Tonbridge & Malling Borough Council,7/5/2023,0012008767/26,12008767, 12.00,O2 UK Ltd,01268000,,Mobile Telephones,Planning Sals&Overheads,D01AJDJ0245013,
http://statistics.data.gov.uk/id/local-authority/29UP,Tonbridge & Malling Borough Council,7/5/2023,0012008767/27,12008767, 6.00,O2 UK Ltd,01268000,,Mobile Telephones,Legal Sals&Overheads,D01ARDR0045013,
http://statistics.data.gov.uk/id/local-authority/29UP,Tonbridge & Malling Borough Council,7/5/2023,0012008767/28,12008767, 12.00,O2 UK Ltd,01268000,,Mobile Telephones,Legal Sals&Overheads,D01ARDR0045013,
http://statistics.data.gov.uk/id/local-authority/29UP,Tonbridge & Malling Borough Council,7/5/2023,0012008767/29,12008767, 3.00,O2 UK Ltd,01268000,,Mobile Telephones,Legal Sals&Overheads,D01ARDR0745013,
http://statistics.data.gov.uk/id/local-authority/29UP,Tonbridge & Malling Borough Council,7/5/2023,0012008767/30,12008767, 3.00,O2 UK Ltd,01268000,,Mobile Telephones,Env Hlth & Hsg Sals&Overheads,D01AVDV0045013,
http://statistics.data.gov.uk/id/local-authority/29UP,Tonbridge & Malling Borough Council,7/5/2023,0012008767/31,12008767, 9.00,O2 UK Ltd,01268000,,Mobile Telephones,Env Hlth & Hsg Sals&Overheads,D01AVDV0145013,
http://statistics.data.gov.uk/id/local-authority/29UP,Tonbridge & Malling Borough Council,7/5/2023,0012008767/32,12008767, 6.00,O2 UK Ltd,01268000,,Mobile Telephones,Env Hlth & Hsg Sals&Overheads,D01AVDV0345013,
http://statistics.data.gov.uk/id/local-authority/29UP,Tonbridge & Malling Borough Council,7/5/2023,0012008767/33,12008767, 3.00,O2 UK Ltd,01268000,,Mobile Telephones,Env Hlth & Hsg Sals&Overheads,D01AVDV0745013,
http://statistics.data.gov.uk/id/local-authority/29UP,Tonbridge & Malling Borough Council,7/5/2023,0012008767/34,12008767, 6.00,O2 UK Ltd,01268000,,Mobile Telephones,Env Hlth & Hsg Sals&Overheads,D01AVDV0945013,
http://statistics.data.gov.uk/id/local-authority/29UP,Tonbridge & Malling Borough Council,7/5/2023,0012008767/35,12008767, 11.10,O2 UK Ltd,01268000,,Mobile Telephones,Customer Services,D23CS000045013,
http://statistics.data.gov.uk/id/local-authority/29UP,Tonbridge & Malling Borough Council,7/5/2023,0012008767/36,12008767, 3.00,O2 UK Ltd,01268000,,Mobile Telephones,Tonbridge Gateway,D23TG000045013,
http://statistics.data.gov.uk/id/local-authority/29UP,Tonbridge & Malling Borough Council,7/5/2023,0012008767/37,12008767, 627.00,O2 UK Ltd,01268000,,Leased Lines & Modems,Information Technology,D27KD000045011,
http://statistics.data.gov.uk/id/local-authority/29UP,Tonbridge & Malling Borough Council,7/5/2023,0012008767/38,12008767, 3.00,O2 UK Ltd,01268000,,Mobile Telephones,Mayoral & Other Member Support,D29LX000045013,
http://statistics.data.gov.uk/id/local-authority/29UP,Tonbridge & Malling Borough Council,7/5/2023,0012008767/39,12008767, 3.00,O2 UK Ltd,01268000,,Emergency Out of Hours Recharg,Refuse Collection,H20SA000045030,
http://statistics.data.gov.uk/id/local-authority/29UP,Tonbridge & Malling Borough Council,7/5/2023,0012008767/40,12008767, 3.00,O2 UK Ltd,01268000,,Emergency Out of Hours Recharg,Street Scene,H23SD000045030,
http://statistics.data.gov.uk/id/local-authority/29UP,Tonbridge & Malling Borough Council,7/5/2023,0012008767/7,12008767, 3.00,O2 UK Ltd,01268000,,Telephones - General,Open Spaces & Amenity Areas,B22LE000045010,
http://statistics.data.gov.uk/id/local-authority/29UP,Tonbridge & Malling Borough Council,7/5/2023,0012008767/8,12008767, 3.00,O2 UK Ltd,01268000,,Mobile Telephones,Admin & Prop Sals&Overheads,D01AADA0045013,
http://statistics.data.gov.uk/id/local-authority/29UP,Tonbridge & Malling Borough Council,7/5/2023,0012008767/9,12008767, 3.00,O2 UK Ltd,01268000,,Mobile Telephones,Admin & Prop Sals&Overheads,D01AADA1045013,
http://statistics.data.gov.uk/id/local-authority/29UP,Tonbridge & Malling Borough Council,7/5/2023,0012008768/1,12008768, 14375.00,Adelante Software Limited,01393800,812115871,Initial Furniture & Equipment,General Data Protection Regs,P06DR000009906,410032376
http://statistics.data.gov.uk/id/local-authority/29UP,Tonbridge & Malling Borough Council,7/5/2023,0012008769/3,12008769, 18.50,Esendex Limited,01008900,,Leased Lines & Modems,Information Technology,D27KD000045011,
http://statistics.data.gov.uk/id/local-authority/29UP,Tonbridge & Malling Borough Council,7/5/2023,0012008771/1,12008771, 9.70,Daisy Communications,01068100,,Telephones - Rentals,General Admin Telephones,D24GT000045005,
http://statistics.data.gov.uk/id/local-authority/29UP,Tonbridge & Malling Borough Council,7/5/2023,0012008771/2,12008771, 287.47,Daisy Communications,01068100,,Telephones - Call Costs,General Admin Telephones,D24GT000045006,
http://statistics.data.gov.uk/id/local-authority/29UP,Tonbridge & Malling Borough Council,7/5/2023,0012008771/3,12008771, 95.92,Daisy Communications,01068100,,Leased Lines & Modems,Information Technology,D27KD000045011,
http://statistics.data.gov.uk/id/local-authority/29UP,Tonbridge & Malling Borough Council,7/5/2023,0012008771/4,12008771, 74.46,Daisy Communications,01068100,,Maintenance - General,Security Services Management,E09GA000040135,
http://statistics.data.gov.uk/id/local-authority/29UP,Tonbridge & Malling Borough Council,7/5/2023,0021038648/1,21038648, 717.00,Streetmaster (South Wales) Ltd,00222100,,Maintenance of Grounds,Sports Grounds,B13ET000020402,210057201
http://statistics.data.gov.uk/id/local-authority/29UP,Tonbridge & Malling Borough Council,7/5/2023,0021038649/1,21038649, 75.00,Sports Connect UK Ltd/ ASW Connect Ltd,01846900,426842974,Partnership Fees,Youth Partnerships,B33PG000044048,210057271
http://statistics.data.gov.uk/id/local-authority/29UP,Tonbridge & Malling Borough Council,7/5/2023,0021038650/1,21038650, 45735.08,Tonbridge & Malling Leisure Trust,01469100,,Employers Superannuation Costs,T&M Leisure Trust,B10DA000050107,
http://statistics.data.gov.uk/id/local-authority/29UP,Tonbridge & Malling Borough Council,7/5/2023,0021038651/1,21038651, 11.50,South East Water Ltd,01330300,,Purchases,Haysden Country Park,B22LC000040101,210057213
http://statistics.data.gov.uk/id/local-authority/29UP,Tonbridge & Malling Borough Council,7/5/2023,0021038652/1,21038652, 1000.00,Music at Malling,01326400,,Events Support,Events Development,B41TJ000044041,
http://statistics.data.gov.uk/id/local-authority/29UP,Tonbridge & Malling Borough Council,7/5/2023,0021038653/3,21038653, 600.00,SWS Countryside & Landscape,01567200,,Health & Safety - Trees,Countryside/Woodland Mgt,B22LG000044045,
http://statistics.data.gov.uk/id/local-authority/29UP,Tonbridge & Malling Borough Council,7/5/2023,0021038654/3,21038654, 950.00,SWS Countryside & Landscape,01567200,,Health & Safety - Trees,Countryside/Woodland Mgt,B22LG000044045,
http://statistics.data.gov.uk/id/local-authority/29UP,Tonbridge & Malling Borough Council,7/5/2023,0021038655/3,21038655, 550.00,SWS Countryside & Landscape,01567200,,Health & Safety - Trees,Countryside/Woodland Mgt,B22LG000044045,
http://statistics.data.gov.uk/id/local-authority/29UP,Tonbridge & Malling Borough Council,7/5/2023,0021038656/1,21038656, 1500.00,Robert Graham T/A Sustainable Land Manag,00040700,,Income,LLCP Facility Improv,P05FF000009907,210057168
http://statistics.data.gov.uk/id/local-authority/29UP,Tonbridge & Malling Borough Council,7/5/2023,0021038657/1,21038657, 500.00,Green Leaf Tree & Landscapes Limited,01860500,,Health & Safety - Trees,Countryside/Woodland Mgt,B22LG000044045,210057226
http://statistics.data.gov.uk/id/local-authority/29UP,Tonbridge & Malling Borough Council,7/5/2023,0021038658/1,21038658, 1150.00,Green Leaf Tree & Landscapes Limited,01860500,,Health & Safety - Trees,Countryside/Woodland Mgt,B22LG000044045,210057223
http://statistics.data.gov.uk/id/local-authority/29UP,Tonbridge & Malling Borough Council,7/5/2023,0021038659/1,21038659, 170.00,SWS Countryside & Landscape,01567200,,Maintenance of Grounds,Tonbridge Castle Grounds,B22LB000020402,210057292
http://statistics.data.gov.uk/id/local-authority/29UP,Tonbridge & Malling Borough Council,7/5/2023,0021038660/1,21038660, 195.00,Flash Mobile Welding Services Ltd,01189200,,Maintenance of Grounds,Open Spaces & Amenity Areas,B22LE000020402,210057186
http://statistics.data.gov.uk/id/local-authority/29UP,Tonbridge & Malling Borough Council,7/5/2023,0021038661/1,21038661, 425.54,David Hodgkinson Photographer,01068900,,Marketing,Events Development,B41TJZ99944215,210057294
http://statistics.data.gov.uk/id/local-authority/29UP,Tonbridge & Malling Borough Council,7/5/2023,0021038662/1,21038662, 595.00,Cornish Forestry Products Ltd,01902200,,Maintenance of Grounds,Haysden Country Park,B22LC000020402,210057260
http://statistics.data.gov.uk/id/local-authority/29UP,Tonbridge & Malling Borough Council,7/5/2023,0021038662/2,21038662, 320.00,Cornish Forestry Products Ltd,01902200,,Maintenance of Grounds,Haysden Country Park,B22LC000020402,210057260
http://statistics.data.gov.uk/id/local-authority/29UP,Tonbridge & Malling Borough Council,7/5/2023,0021038663/1,21038663, 23754.66,Landscape Services Ltd,00057600,,Grounds Maintenance Contract,Sports Grounds,B13ET000050103,
http://statistics.data.gov.uk/id/local-authority/29UP,Tonbridge & Malling Borough Council,7/5/2023,0021038663/10,21038663, 190.43,Landscape Services Ltd,00057600,,Grounds Maintenance Contract,Churchyards St Stephens,B28MY000050103,
http://statistics.data.gov.uk/id/local-authority/29UP,Tonbridge & Malling Borough Council,7/5/2023,0021038663/11,21038663, 191.95,Landscape Services Ltd,00057600,,Grounds Maintenance Contract,Grounds,D21FF000050103,
http://statistics.data.gov.uk/id/local-authority/29UP,Tonbridge & Malling Borough Council,7/5/2023,0021038663/12,21038663, 364.05,Landscape Services Ltd,00057600,,Maintenance of Grounds,Parking Off-Street,E10HA000020402,
http://statistics.data.gov.uk/id/local-authority/29UP,Tonbridge & Malling Borough Council,7/5/2023,0021038663/13,21038663, 1148.71,Landscape Services Ltd,00057600,,Maintenance of Grounds,Parking Off-Street,E10HAE00120402,
http://statistics.data.gov.uk/id/local-authority/29UP,Tonbridge & Malling Borough Council,7/5/2023,0021038663/14,21038663, 108.41,Landscape Services Ltd,00057600,,Maintenance of Grounds,Parking Off-Street,E10HAE00220402,
http://statistics.data.gov.uk/id/local-authority/29UP,Tonbridge & Malling Borough Council,7/5/2023,0021038663/15,21038663, 98.31,Landscape Services Ltd,00057600,,Maintenance of Grounds,Parking Off-Street,E10HAE00320402,
http://statistics.data.gov.uk/id/local-authority/29UP,Tonbridge & Malling Borough Council,7/5/2023,0021038663/16,21038663, 24.52,Landscape Services Ltd,00057600,,Maintenance of Grounds,Parking Off-Street,E10HAE00420402,
http://statistics.data.gov.uk/id/local-authority/29UP,Tonbridge & Malling Borough Council,7/5/2023,0021038663/17,21038663, 0.63,Landscape Services Ltd,00057600,,Maintenance of Grounds,Parking Off-Street,E10HAE00520402,
http://statistics.data.gov.uk/id/local-authority/29UP,Tonbridge & Malling Borough Council,7/5/2023,0021038663/18,21038663, 68.63,Landscape Services Ltd,00057600,,Maintenance of Grounds,Parking Off-Street,E10HAE00620402,
http://statistics.data.gov.uk/id/local-authority/29UP,Tonbridge & Malling Borough Council,7/5/2023,0021038663/19,21038663, 160.24,Landscape Services Ltd,00057600,,Maintenance of Grounds,Parking Off-Street,E10HAE01020402,
http://statistics.data.gov.uk/id/local-authority/29UP,Tonbridge & Malling Borough Council,7/5/2023,0021038663/2,21038663, 8238.89,Landscape Services Ltd,00057600,,Grounds Maintenance Contract,Tonbridge Castle Grounds,B22LB000050103,
http://statistics.data.gov.uk/id/local-authority/29UP,Tonbridge & Malling Borough Council,7/5/2023,0021038663/20,21038663, 3.55,Landscape Services Ltd,00057600,,Maintenance of Grounds,Parking Off-Street,E10HAE01220402,
http://statistics.data.gov.uk/id/local-authority/29UP,Tonbridge & Malling Borough Council,7/5/2023,0021038663/21,21038663, 7.83,Landscape Services Ltd,00057600,,Maintenance of Grounds,Parking Off-Street,E10HAE01320402,
http://statistics.data.gov.uk/id/local-authority/29UP,Tonbridge & Malling Borough Council,7/5/2023,0021038663/22,21038663, 32.60,Landscape Services Ltd,00057600,,Maintenance of Grounds,Parking Off-Street,E10HAE01520402,
http://statistics.data.gov.uk/id/local-authority/29UP,Tonbridge & Malling Borough Council,7/5/2023,0021038663/23,21038663, 63.69,Landscape Services Ltd,00057600,,Maintenance of Grounds,Parking Off-Street,E10HAE01620402,
http://statistics.data.gov.uk/id/local-authority/29UP,Tonbridge & Malling Borough Council,7/5/2023,0021038663/24,21038663, 25.88,Landscape Services Ltd,00057600,,Maintenance of Grounds,Parking Off-Street,E10HAE01720402,
http://statistics.data.gov.uk/id/local-authority/29UP,Tonbridge & Malling Borough Council,7/5/2023,0021038663/25,21038663, 15.90,Landscape Services Ltd,00057600,,Maintenance of Grounds,Parking Off-Street,E10HAE02120402,
http://statistics.data.gov.uk/id/local-authority/29UP,Tonbridge & Malling Borough Council,7/5/2023,0021038663/26,21038663, 25.32,Landscape Services Ltd,00057600,,Maintenance of Grounds,Parking Off-Street,E10HAE02320402,
http://statistics.data.gov.uk/id/local-authority/29UP,Tonbridge & Malling Borough Council,7/5/2023,0021038663/27,21038663, 97.05,Landscape Services Ltd,00057600,,Maintenance of Grounds,Parking Off-Street,E10HAE02820402,
http://statistics.data.gov.uk/id/local-authority/29UP,Tonbridge & Malling Borough Council,7/5/2023,0021038663/28,21038663, 26.28,Landscape Services Ltd,00057600,,Maintenance of Grounds,Parking Off-Street,E10HAE04020402,
http://statistics.data.gov.uk/id/local-authority/29UP,Tonbridge & Malling Borough Council,7/5/2023,0021038663/29,21038663, 86.65,Landscape Services Ltd,00057600,,Maintenance of Grounds,Parking Off-Street,E10HAE04520402,
http://statistics.data.gov.uk/id/local-authority/29UP,Tonbridge & Malling Borough Council,7/5/2023,0021038663/3,21038663, 62.73,Landscape Services Ltd,00057600,,Trade Refuse Charges,Haysden Country Park,B22LC000044008,
http://statistics.data.gov.uk/id/local-authority/29UP,Tonbridge & Malling Borough Council,7/5/2023,0021038663/4,21038663, 538.16,Landscape Services Ltd,00057600,,Litter Collection,Haysden Country Park,B22LC000044061,
http://statistics.data.gov.uk/id/local-authority/29UP,Tonbridge & Malling Borough Council,7/5/2023,0021038663/5,21038663, 1849.86,Landscape Services Ltd,00057600,,Grounds Maintenance Contract,Haysden Country Park,B22LC000050103,
http://statistics.data.gov.uk/id/local-authority/29UP,Tonbridge & Malling Borough Council,7/5/2023,0021038663/6,21038663, 645.29,Landscape Services Ltd,00057600,,Grounds Maintenance Contract,Haysden Country Park,B22LC000050103,
http://statistics.data.gov.uk/id/local-authority/29UP,Tonbridge & Malling Borough Council,7/5/2023,0021038663/7,21038663, 14164.79,Landscape Services Ltd,00057600,,Grounds Maintenance Contract,Open Spaces & Amenity Areas,B22LE000050103,
http://statistics.data.gov.uk/id/local-authority/29UP,Tonbridge & Malling Borough Council,7/5/2023,0021038663/8,21038663, 5103.55,Landscape Services Ltd,00057600,,Grounds Maintenance Contract,Cemetery,B26MP000050103,
http://statistics.data.gov.uk/id/local-authority/29UP,Tonbridge & Malling Borough Council,7/5/2023,0021038663/9,21038663, 256.67,Landscape Services Ltd,00057600,,Grounds Maintenance Contract,Churchyards St Peter & St Paul,B28MX000050103,
http://statistics.data.gov.uk/id/local-authority/29UP,Tonbridge & Malling Borough Council,7/5/2023,0021038664/1,21038664, 225.00,Alltree Consultancy Ltd,01668300,,Health & Safety - Trees,Countryside/Woodland Mgt,B22LG000044045,210057291
http://statistics.data.gov.uk/id/local-authority/29UP,Tonbridge & Malling Borough Council,7/5/2023,0022027878/3,22027878, 1543.50,Lucy and Martin Recycling LTD,01694200,,General Maintenance,Dry Recycling,H34SR000020301,
http://statistics.data.gov.uk/id/local-authority/29UP,Tonbridge & Malling Borough Council,7/5/2023,0022027879/3,22027879, 64.80,Language Line,00835100,,Professional Fees,Homelessness,C01AA000044001,
http://statistics.data.gov.uk/id/local-authority/29UP,Tonbridge & Malling Borough Council,7/5/2023,0022027880/3,22027880, 63.55,Language Line,00835100,,Professional Fees,Homelessness,C01AA000044001,
http://statistics.data.gov.uk/id/local-authority/29UP,Tonbridge & Malling Borough Council,7/5/2023,0022027881/3,22027881, 4322.11,Ward Security LTD,01490000,,Dog Warden,Street Scene,H23SD000044100,
http://statistics.data.gov.uk/id/local-authority/29UP,Tonbridge & Malling Borough Council,7/5/2023,0022027882/3,22027882, 1397.00,Specialist Hygiene Services,01466100,,Cleaning & Domestic Supplies,Haysden Country Park,B22LC000026001,
http://statistics.data.gov.uk/id/local-authority/29UP,Tonbridge & Malling Borough Council,7/5/2023,0022027882/4,22027882, 5611.80,Specialist Hygiene Services,01466100,,Contract Payments,Public Conveniences,H22SC000054001,
http://statistics.data.gov.uk/id/local-authority/29UP,Tonbridge & Malling Borough Council,7/5/2023,0022027883/1,22027883, 26.18,Premier Promotional Products,01714200,,Other Expenses,Dry Recycling,H34SR000048010,220003354
http://statistics.data.gov.uk/id/local-authority/29UP,Tonbridge & Malling Borough Council,7/5/2023,0022027883/2,22027883, 26.18,Premier Promotional Products,01714200,,Other Expenses,Dry Recycling,H34SR000048010,220003354
http://statistics.data.gov.uk/id/local-authority/29UP,Tonbridge & Malling Borough Council,7/5/2023,0022027883/3,22027883, 52.36,Premier Promotional Products,01714200,,Other Expenses,Dry Recycling,H34SR000048010,220003354
http://statistics.data.gov.uk/id/local-authority/29UP,Tonbridge & Malling Borough Council,7/5/2023,0022027883/4,22027883, 52.36,Premier Promotional Products,01714200,,Other Expenses,Dry Recycling,H34SR000048010,220003354
http://statistics.data.gov.uk/id/local-authority/29UP,Tonbridge & Malling Borough Council,7/5/2023,0022027883/5,22027883, 33.84,Premier Promotional Products,01714200,,Other Expenses,Dry Recycling,H34SR000048010,220003354
http://statistics.data.gov.uk/id/local-authority/29UP,Tonbridge & Malling Borough Council,7/5/2023,0022027883/6,22027883, 70.08,Premier Promotional Products,01714200,,Other Expenses,Dry Recycling,H34SR000048010,220003354
http://statistics.data.gov.uk/id/local-authority/29UP,Tonbridge & Malling Borough Council,7/5/2023,0022027883/7,22027883, 25.00,Premier Promotional Products,01714200,,Other Expenses,Dry Recycling,H34SR000048010,220003354
http://statistics.data.gov.uk/id/local-authority/29UP,Tonbridge & Malling Borough Council,7/5/2023,0022027884/3,22027884, 65.88,Peoplesafe -  Skyguard Ltd,01779900,,Health General,Env Hlth & Hsg Sals&Overheads,D01AVDV0744049,
http://statistics.data.gov.uk/id/local-authority/29UP,Tonbridge & Malling Borough Council,7/5/2023,0022027885/3,22027885, 800.00,Green Recycling LTD,01563000,,Paper Recycling,Dry Recycling,H34SR000054024,
http://statistics.data.gov.uk/id/local-authority/29UP,Tonbridge & Malling Borough Council,7/5/2023,0022027886/1,22027886, 1049.25,Premier Promotional Products,01714200,,Healthy Living Initiatives,Public Health - Healthy Living,H40SYVH0048145,220003350
http://statistics.data.gov.uk/id/local-authority/29UP,Tonbridge & Malling Borough Council,7/5/2023,0022027887/1,22027887, 88.90,E.ON - Next,01790900,,Electricity,Homelessness,C01AATNPR21002,
http://statistics.data.gov.uk/id/local-authority/29UP,Tonbridge & Malling Borough Council,7/5/2023,0022027888/1,22027888, 4645.60,Countrystyle Group,00835900,781981681,Plastic Recycling,Dry Recycling,H34SR000054019,
http://statistics.data.gov.uk/id/local-authority/29UP,Tonbridge & Malling Borough Council,7/5/2023,0022027889/1,22027889, 600.00,REDACTED PERSONAL DATA,01905900,,Other Expenses,Housing Assistance,P03AD000009908,
http://statistics.data.gov.uk/id/local-authority/29UP,Tonbridge & Malling Borough Council,7/5/2023,0022027890/1,22027890, 1800.00,ARD Local Ltd,01904000,,Other Expenses,Housing Assistance,P03AD000009908,
http://statistics.data.gov.uk/id/local-authority/29UP,Tonbridge & Malling Borough Council,7/5/2023,0022027891/1,22027891, 335.00,Britains Limited,01743900,,Repairs & Mtce to Buildings,Homelessness,C01AATNPR20101,
http://statistics.data.gov.uk/id/local-authority/29UP,Tonbridge & Malling Borough Council,7/5/2023,0022027892/1,22027892, 50.00,BML Building Services Ltd,01505000,,Repairs & Mtce to Buildings,Homelessness,C01AATNPR20101,310043080
http://statistics.data.gov.uk/id/local-authority/29UP,Tonbridge & Malling Borough Council,7/5/2023,0022027893/1,22027893, 42.18,Biffa Waste Services Ltd,01284500,,Trade Refuse Charges,Cleaning & Security,D21FD000044008,
http://statistics.data.gov.uk/id/local-authority/29UP,Tonbridge & Malling Borough Council,7/5/2023,0031019535/1,31019535, 125.50,Royal British Legion Industries Ltd,00139700,,Premises Repairs & Maintenance,Parking On-Street,E10HD000020601,310043071
http://statistics.data.gov.uk/id/local-authority/29UP,Tonbridge & Malling Borough Council,7/5/2023,0031019536/1,31019536, 5.84,REDACTED PERSONAL DATA,01576900,,Purchases,Parking Off-Street,E10HA000040101,
http://statistics.data.gov.uk/id/local-authority/29UP,Tonbridge & Malling Borough Council,7/5/2023,0031019536/2,31019536, 5.83,REDACTED PERSONAL DATA,01576900,,Purchases,Parking On-Street,E10HD000040101,
http://statistics.data.gov.uk/id/local-authority/29UP,Tonbridge & Malling Borough Council,7/5/2023,0031019537/3,31019537, 65.26,Shell U.K. Oil Products Limited,01673300,,"Petrol, Diesel & Oil",Patrolling,B22LF000030106,
http://statistics.data.gov.uk/id/local-authority/29UP,Tonbridge & Malling Borough Council,7/5/2023,0031019537/4,31019537, 80.57,Shell U.K. Oil Products Limited,01673300,,"Petrol, Diesel & Oil",Parking Off-Street,E10HA000030106,
http://statistics.data.gov.uk/id/local-authority/29UP,Tonbridge & Malling Borough Council,7/5/2023,0031019537/5,31019537, 80.57,Shell U.K. Oil Products Limited,01673300,,"Petrol, Diesel & Oil",Parking On-Street,E10HD000030106,
http://statistics.data.gov.uk/id/local-authority/29UP,Tonbridge & Malling Borough Council,7/5/2023,0031019541/3,31019541, 845.00,Marston,01485000,,Adjudication & Enforcement Ser,Parking Off-Street,E10HA000044230,
http://statistics.data.gov.uk/id/local-authority/29UP,Tonbridge & Malling Borough Council,7/5/2023,0031019542/3,31019542, 784.00,Lucy and Martin Recycling LTD,01694200,,General Maintenance,Dry Recycling,H34SR000020301,
http://statistics.data.gov.uk/id/local-authority/29UP,Tonbridge & Malling Borough Council,7/5/2023,0031019543/1,31019543, 4000.00,Duke Contractors Ltd,00082900,790980095,Other Expenses,Car Park Imp Rolling Programme,P01AB000009908,310043077
http://statistics.data.gov.uk/id/local-authority/29UP,Tonbridge & Malling Borough Council,7/5/2023,0031019544/1,31019544, 13556.34,Duke Contractors Ltd,00082900,790980095,Premises Repairs & Maintenance,Parking Off-Street,E10HA000020601,310043076
http://statistics.data.gov.uk/id/local-authority/29UP,Tonbridge & Malling Borough Council,7/5/2023,0031019545/1,31019545, 4800.00,Duke Contractors Ltd,00082900,790980095,Premises Repairs & Maintenance,Parking Off-Street,E10HA000020601,310043075
http://statistics.data.gov.uk/id/local-authority/29UP,Tonbridge & Malling Borough Council,7/5/2023,0031019546/1,31019546, 1672.34,CDER Group,01773300,,Adjudication & Enforcement Ser,Parking Off-Street,E10HA000044230,
http://statistics.data.gov.uk/id/local-authority/29UP,Tonbridge & Malling Borough Council,7/5/2023,0031019547/3,31019547, 195.48,British Telecommunications Plc,00012800,,Maintenance - General,Security Services Management,E09GA000040135,
http://statistics.data.gov.uk/id/local-authority/29UP,Tonbridge & Malling Borough Council,7/5/2023,0031019548/3,31019548, 195.48,British Telecommunications Plc,00012800,,Maintenance - General,Security Services Management,E09GA000040135,
http://statistics.data.gov.uk/id/local-authority/29UP,Tonbridge & Malling Borough Council,7/5/2023,0031019549/1,31019549, 41.90,Seymour Hire Ltd,00737200,,Premises Repairs & Maintenance,Parking Off-Street,E10HA000020601,310042998
http://statistics.data.gov.uk/id/local-authority/29UP,Tonbridge & Malling Borough Council,7/5/2023,0031019549/2,31019549, 62.86,Seymour Hire Ltd,00737200,,Premises Repairs & Maintenance,Parking On-Street,E10HD000020601,310042998
http://statistics.data.gov.uk/id/local-authority/29UP,Tonbridge & Malling Borough Council,7/5/2023,0031019550/1,31019550, 73.33,Seymour Hire Ltd,00737200,,Premises Repairs & Maintenance,Parking Off-Street,E10HA000020601,310042998
http://statistics.data.gov.uk/id/local-authority/29UP,Tonbridge & Malling Borough Council,7/5/2023,0031019550/2,31019550, 110.00,Seymour Hire Ltd,00737200,,Premises Repairs & Maintenance,Parking On-Street,E10HD000020601,310042998
http://statistics.data.gov.uk/id/local-authority/29UP,Tonbridge & Malling Borough Council,7/5/2023,0032010292/1,32010292, 12360.00,Jim Lynch,01903300,,Development of Local Plan,Development of Local Plan,A01AE000044023,320003524
http://statistics.data.gov.uk/id/local-authority/29UP,Tonbridge & Malling Borough Council,7/5/2023,0032010293/3,32010293, 1720.26,The Oyster Partnership,01196400,,Temporary Staff,Planning Sals&Overheads,D01AJDJ0111300,
http://statistics.data.gov.uk/id/local-authority/29UP,Tonbridge & Malling Borough Council,7/5/2023,0032010294/3,32010294, 1081.50,The Oyster Partnership,01196400,,Temporary Staff,Planning Sals&Overheads,D01AJDJ0111300,
http://statistics.data.gov.uk/id/local-authority/29UP,Tonbridge & Malling Borough Council,7/5/2023,0032010295/1,32010295, 7582.50,Kings Hill Parish Council,00262200,,Payments,S106 - Commuted Sums,M04AD000001001,
http://statistics.data.gov.uk/id/local-authority/29UP,Tonbridge & Malling Borough Council,7/5/2023,0032010296/3,32010296, 2212.50,Hays Specialist Recruitment Limited,01879200,773695871,Temporary Staff,Planning Sals&Overheads,D01AJDJ0111300,
http://statistics.data.gov.uk/id/local-authority/29UP,Tonbridge & Malling Borough Council,7/5/2023,0032010297/3,32010297, 1800.00,G2 Recruitment Solutions,01786000,,Temporary Staff,Planning Sals&Overheads,D01AJDJ0011300,
http://statistics.data.gov.uk/id/local-authority/29UP,Tonbridge & Malling Borough Council,7/5/2023,0032010298/1,32010298, 4289.25,Vivid Resourcing,01773700,,Temporary Staff,Planning Sals&Overheads,D01AJDJ0111300,
http://statistics.data.gov.uk/id/local-authority/29UP,Tonbridge & Malling Borough Council,7/5/2023,0032010299/1,32010299, 1691.75,The Oyster Partnership,01196400,,Temporary Staff,Planning Sals&Overheads,D01AJDJ0111300,
http://statistics.data.gov.uk/id/local-authority/29UP,Tonbridge & Malling Borough Council,7/5/2023,0032010300/1,32010300, 724.50,The Oyster Partnership,01196400,,Temporary Staff,Planning Sals&Overheads,D01AJDJ0111300,
http://statistics.data.gov.uk/id/local-authority/29UP,Tonbridge & Malling Borough Council,7/5/2023,0032010301/1,32010301, 11940.00,Nathaniel Lichfield & Partners Ltd,00070000,,Development of Local Plan,Development of Local Plan,A01AE000044023,320003523
http://statistics.data.gov.uk/id/local-authority/29UP,Tonbridge & Malling Borough Council,7/5/2023,0032010302/1,32010302, 2227.25,Hays Specialist Recruitment Limited,01879200,773695871,Temporary Staff,Planning Sals&Overheads,D01AJDJ0311300,
http://statistics.data.gov.uk/id/local-authority/29UP,Tonbridge & Malling Borough Council,7/5/2023,0032010303/1,32010303, 2250.00,G2 Recruitment Solutions,01786000,,Temporary Staff,Planning Sals&Overheads,D01AJDJ0011300,
http://statistics.data.gov.uk/id/local-authority/29UP,Tonbridge & Malling Borough Council,7/5/2023,0032010304/1,32010304, 1000.00,Environment Agency,00418100,,Development of Local Plan,Development of Local Plan,A01AE000044023,320003400
http://statistics.data.gov.uk/id/local-authority/29UP,Tonbridge & Malling Borough Council,7/5/2023,0041035628/3,41035628, 2113.83,Maidstone Borough Council,01173700,,Bailiffs Commission,Local Revenue & NNDR Collect,D41QA000044075,
http://statistics.data.gov.uk/id/local-authority/29UP,Tonbridge & Malling Borough Council,7/5/2023,0041035629/3,41035629, 164.33,Maidstone Borough Council,01173700,,Bailiffs Commission,Local Revenue & NNDR Collect,D41QA000044075,
http://statistics.data.gov.uk/id/local-authority/29UP,Tonbridge & Malling Borough Council,7/5/2023,0041035630/1,41035630, 200.00,Society of District Council Treasurers,01047700,,Subscriptions,Finance Sals&Overheads,D01AF000047002,
http://statistics.data.gov.uk/id/local-authority/29UP,Tonbridge & Malling Borough Council,7/5/2023,0041035636/3,41035636, 1081.14,Morgan Hunt UK Ltd,01086900,,Temporary Staff,Finance Sals&Overheads,D01AFDF1111300,
http://statistics.data.gov.uk/id/local-authority/29UP,Tonbridge & Malling Borough Council,7/5/2023,0041035637/3,41035637, 1794.03,Rundle & Co Ltd,00087200,,Bailiffs Commission,Local Revenue & NNDR Collect,D41QA000044075,
http://statistics.data.gov.uk/id/local-authority/29UP,Tonbridge & Malling Borough Council,7/5/2023,0041035639/1,41035639, 4500.00,NEC Software Solutions UK Ltd,01073900,202159745,Localisation of CTax Benefit,Council Tax Support,D42QF000048060,410032430
http://statistics.data.gov.uk/id/local-authority/29UP,Tonbridge & Malling Borough Council,7/5/2023,0041035640/3,41035640, 30.80,Tameside Metropolitan Borough,00770200,,Other Expenses,Finance Sals&Overheads,D01AFDF0648010,
http://statistics.data.gov.uk/id/local-authority/29UP,Tonbridge & Malling Borough Council,7/5/2023,0041035655/1,41035655, 250.00,National Westminster Bank Plc,00069400,,Bank Charges,Banking Arrangements,D43QK000044222,
http://statistics.data.gov.uk/id/local-authority/29UP,Tonbridge & Malling Borough Council,7/6/2023,0041035650/1,41035650, 15.00,WorldPay ,01568000,,Credit Card Commission,Banking Arrangements,D43QK000044082,
http://statistics.data.gov.uk/id/local-authority/29UP,Tonbridge & Malling Borough Council,7/6/2023,0041035651/1,41035651, 269.37,WorldPay ,01568000,,Credit Card Commission,Banking Arrangements,D43QK000044082,
http://statistics.data.gov.uk/id/local-authority/29UP,Tonbridge & Malling Borough Council,7/6/2023,0041035652/1,41035652, 2597.69,WorldPay ,01568000,,Credit Card Commission,Banking Arrangements,D43QK000044082,
http://statistics.data.gov.uk/id/local-authority/29UP,Tonbridge & Malling Borough Council,7/6/2023,0041035652/2,41035652, 221.79,WorldPay ,01568000,,Credit Card Commission,Banking Arrangements,D43QK000044082,
http://statistics.data.gov.uk/id/local-authority/29UP,Tonbridge & Malling Borough Council,7/6/2023,0041035653/1,41035653, 843.01,WorldPay ,01568000,,Credit Card Commission,Banking Arrangements,D43QK000044082,
http://statistics.data.gov.uk/id/local-authority/29UP,Tonbridge & Malling Borough Council,7/12/2023,0011046463/3,11046463, 125.08,Key Craft,01148600,,Purchases,TIC Stock Account,K18AX000001002,
http://statistics.data.gov.uk/id/local-authority/29UP,Tonbridge & Malling Borough Council,7/12/2023,0011046465/3,11046465, 24.15,Oasis Group  - Box-It South East,00966800,931579211,Purchases,Electoral Registration,D31MF000040101,
http://statistics.data.gov.uk/id/local-authority/29UP,Tonbridge & Malling Borough Council,7/12/2023,0011046466/1,11046466, 3073.44,REDACTED PERSONAL DATA,01906100,,Contract Payments,UK Shared Prosperity Fund,P06FNFN4009904,
http://statistics.data.gov.uk/id/local-authority/29UP,Tonbridge & Malling Borough Council,7/12/2023,0011046467/3,11046467, 1217.80,Sellick Partnership Group Limited,01336800,,Temporary Staff,Legal Sals&Overheads,D01ARDR0011300,
http://statistics.data.gov.uk/id/local-authority/29UP,Tonbridge & Malling Borough Council,7/12/2023,0011046468/3,11046468, 48.72,Biffa Waste Services Ltd,01284500,,Trade Refuse Charges,Cleaning & Security,D21FD000044008,
http://statistics.data.gov.uk/id/local-authority/29UP,Tonbridge & Malling Borough Council,7/12/2023,0011046469/3,11046469, 48.72,Biffa Waste Services Ltd,01284500,,Trade Refuse Charges,Cleaning & Security,D21FD000044008,
http://statistics.data.gov.uk/id/local-authority/29UP,Tonbridge & Malling Borough Council,7/12/2023,0011046470/3,11046470, 245.98,Biffa Waste Services Ltd,01284500,,Trade Refuse Charges,Cleaning & Security,D21FD000044008,
http://statistics.data.gov.uk/id/local-authority/29UP,Tonbridge & Malling Borough Council,7/12/2023,0011046471/3,11046471, 208.50,Biffa Waste Services Ltd,01284500,,Trade Refuse Charges,Cleaning & Security,D21FD000044008,
http://statistics.data.gov.uk/id/local-authority/29UP,Tonbridge & Malling Borough Council,7/12/2023,0011046472/3,11046472, 74.55,Biffa Waste Services Ltd,01284500,,Trade Refuse Charges,Cleaning & Security,D21FD000044008,
http://statistics.data.gov.uk/id/local-authority/29UP,Tonbridge & Malling Borough Council,7/12/2023,0011046473/3,11046473, 368.97,Biffa Waste Services Ltd,01284500,,Trade Refuse Charges,Cleaning & Security,D21FD000044008,
http://statistics.data.gov.uk/id/local-authority/29UP,Tonbridge & Malling Borough Council,7/12/2023,0011046474/3,11046474, 1480.60,The Oyster Partnership,01196400,,Temporary Staff,Admin & Prop Sals&Overheads,D01AADA1111300,
http://statistics.data.gov.uk/id/local-authority/29UP,Tonbridge & Malling Borough Council,7/12/2023,0011046475/3,11046475, 350.00,Stuart Thomas Photography,00416800,,Other Expenses,Mayoral & Other Member Support,D29LX000048010,
http://statistics.data.gov.uk/id/local-authority/29UP,Tonbridge & Malling Borough Council,7/12/2023,0011046476/3,11046476, 97.42,Atlas Facilities Managment Limited ,01075900,,Miscellaneous Services,Cleaning & Security,D21FDDD1044015,
http://statistics.data.gov.uk/id/local-authority/29UP,Tonbridge & Malling Borough Council,7/12/2023,0011046477/3,11046477, 1561.36,The Oyster Partnership,01196400,,Temporary Staff,Admin & Prop Sals&Overheads,D01AADA1111300,
http://statistics.data.gov.uk/id/local-authority/29UP,Tonbridge & Malling Borough Council,7/12/2023,0011046478/3,11046478, 795.60,Financial Data Management  Plc,00035400,,External Printing,Conduct of Elections,D31MG000043001,
http://statistics.data.gov.uk/id/local-authority/29UP,Tonbridge & Malling Borough Council,7/12/2023,0011046479/1,11046479, 140.00,East Sussex Fire Ltd,01843100,,Repairs & Mtce to Buildings,Homelessness,C01AATNHS20101,110070238
http://statistics.data.gov.uk/id/local-authority/29UP,Tonbridge & Malling Borough Council,7/12/2023,0011046480/1,11046480, 562.50,Thomson Snell & Passmore,00101700,,Legal Fees,Legal Sals&Overheads,D01ARDR0044002,
http://statistics.data.gov.uk/id/local-authority/29UP,Tonbridge & Malling Borough Council,7/12/2023,0011046481/3,11046481, 2123.44,GSF SANDYLIGHT LTD,01705300,,Temporary Staff,Admin & Prop Sals&Overheads,D01AADA0511300,
http://statistics.data.gov.uk/id/local-authority/29UP,Tonbridge & Malling Borough Council,7/12/2023,0011046482/1,11046482, 722.00,Disclosure & Barring Service,00865900,,Professional Fees,Licences - Fee Paying,H27SH000044001,
http://statistics.data.gov.uk/id/local-authority/29UP,Tonbridge & Malling Borough Council,7/12/2023,0011046483/3,11046483, 1297.50,Thomson Snell & Passmore,00101700,,Legal Fees,Legal Sals&Overheads,D01ARDR0044002,
http://statistics.data.gov.uk/id/local-authority/29UP,Tonbridge & Malling Borough Council,7/12/2023,0011046484/1,11046484, 1217.80,Sellick Partnership Group Limited,01336800,,Temporary Staff,Legal Sals&Overheads,D01ARDR0011300,
http://statistics.data.gov.uk/id/local-authority/29UP,Tonbridge & Malling Borough Council,7/12/2023,0011046485/1,11046485, 1204.40,Sellick Partnership Group Limited,01336800,,Temporary Staff,Legal Sals&Overheads,D01ARDR0011300,
http://statistics.data.gov.uk/id/local-authority/29UP,Tonbridge & Malling Borough Council,7/12/2023,0011046486/1,11046486, 343.22,International Zoo Veterinary Group,01057400,,Professional Fees,Licences - Fee Paying,H27SH000044001,
http://statistics.data.gov.uk/id/local-authority/29UP,Tonbridge & Malling Borough Council,7/12/2023,0011046487/1,11046487, 178.00,Tonbridge & Malling Leisure Trust,01469100,,Initiatives,Climate Change,D47SA000048135,
http://statistics.data.gov.uk/id/local-authority/29UP,Tonbridge & Malling Borough Council,7/12/2023,0011046488/1,11046488, 38.94,Royal Mail,00086200,,Postages - Business Reply,Electoral Registration,D31MF000045003,
http://statistics.data.gov.uk/id/local-authority/29UP,Tonbridge & Malling Borough Council,7/12/2023,0011046488/2,11046488, 15.00,Royal Mail,00086200,,Purchases,Business Reply Stock Account,K14AT000001002,
http://statistics.data.gov.uk/id/local-authority/29UP,Tonbridge & Malling Borough Council,7/12/2023,0011046489/1,11046489, 1494.95,Royal Mail,00086200,,Purchases,Mailsort Stock Account,K37BR000001002,
http://statistics.data.gov.uk/id/local-authority/29UP,Tonbridge & Malling Borough Council,7/12/2023,0011046489/2,11046489, 17.46,Royal Mail,00086200,,Purchases,Mailsort Stock Account,K37BR000001002,
http://statistics.data.gov.uk/id/local-authority/29UP,Tonbridge & Malling Borough Council,7/12/2023,0011046489/3,11046489, 6.30,Royal Mail,00086200,,Purchases,Mailsort Stock Account,K37BR000001002,
http://statistics.data.gov.uk/id/local-authority/29UP,Tonbridge & Malling Borough Council,7/12/2023,0011046490/1,11046490, 129.90,KCS Education/CSG Global Education Ltd,01897200,408845925,Stationery,Admin & Prop Sals&Overheads,D01AA000043003,110070330
http://statistics.data.gov.uk/id/local-authority/29UP,Tonbridge & Malling Borough Council,7/12/2023,0011046491/1,11046491, 69.50,KCS Education/CSG Global Education Ltd,01897200,408845925,Stationery,Admin & Prop Sals&Overheads,D01AA000043003,110070330
http://statistics.data.gov.uk/id/local-authority/29UP,Tonbridge & Malling Borough Council,7/12/2023,0011046491/2,11046491, 99.50,KCS Education/CSG Global Education Ltd,01897200,408845925,Stationery,Admin & Prop Sals&Overheads,D01AA000043003,110070330
http://statistics.data.gov.uk/id/local-authority/29UP,Tonbridge & Malling Borough Council,7/12/2023,0011046491/3,11046491, 8.98,KCS Education/CSG Global Education Ltd,01897200,408845925,Stationery,Admin & Prop Sals&Overheads,D01AA000043003,110070330
http://statistics.data.gov.uk/id/local-authority/29UP,Tonbridge & Malling Borough Council,7/12/2023,0011046491/4,11046491, 44.90,KCS Education/CSG Global Education Ltd,01897200,408845925,Stationery,Admin & Prop Sals&Overheads,D01AA000043003,110070330
http://statistics.data.gov.uk/id/local-authority/29UP,Tonbridge & Malling Borough Council,7/12/2023,0011046492/1,11046492, 479.88,KCS Education/CSG Global Education Ltd,01897200,408845925,Cleaning & Domestic Supplies,Cleaning & Security,D21FD000026001,110070328
http://statistics.data.gov.uk/id/local-authority/29UP,Tonbridge & Malling Borough Council,7/12/2023,0011046492/2,11046492, 51.96,KCS Education/CSG Global Education Ltd,01897200,408845925,Cleaning & Domestic Supplies,Cleaning & Security,D21FD000026001,110070328
http://statistics.data.gov.uk/id/local-authority/29UP,Tonbridge & Malling Borough Council,7/12/2023,0011046492/3,11046492, 5.90,KCS Education/CSG Global Education Ltd,01897200,408845925,Cleaning & Domestic Supplies,Cleaning & Security,D21FD000026001,110070328
http://statistics.data.gov.uk/id/local-authority/29UP,Tonbridge & Malling Borough Council,7/12/2023,0011046492/4,11046492, 8.85,KCS Education/CSG Global Education Ltd,01897200,408845925,Cleaning & Domestic Supplies,Cleaning & Security,D21FD000026001,110070328
http://statistics.data.gov.uk/id/local-authority/29UP,Tonbridge & Malling Borough Council,7/12/2023,0012008772/1,12008772, 2061.24,NTT Cloud Communications UK Ltd,01794600,,Software Hire & Support,Information Technology,D27KD000044059,110069968
http://statistics.data.gov.uk/id/local-authority/29UP,Tonbridge & Malling Borough Council,7/12/2023,0012008773/3,12008773, 1493.02,NTT Cloud Communications UK Ltd,01794600,,Software Hire & Support,Information Technology,D27KD000044059,
http://statistics.data.gov.uk/id/local-authority/29UP,Tonbridge & Malling Borough Council,7/12/2023,0012008774/3,12008774, 816.75,Canon (UK) Limited,00298700,,Software Hire & Support,Information Technology,D27KD000044059,
http://statistics.data.gov.uk/id/local-authority/29UP,Tonbridge & Malling Borough Council,7/12/2023,0012008775/1,12008775, 149.90,CCS Media Ltd,00018000,,Purchases,Information Technology,D27KD000040101,410032436
http://statistics.data.gov.uk/id/local-authority/29UP,Tonbridge & Malling Borough Council,7/12/2023,0012008775/2,12008775, 5.00,CCS Media Ltd,00018000,,Delivery Expenses,Information Technology,D27KD000044069,410032436
http://statistics.data.gov.uk/id/local-authority/29UP,Tonbridge & Malling Borough Council,7/12/2023,0012008776/1,12008776, 439.90,CCS Media Ltd,00018000,,Purchases,Information Technology,D27KD000040101,410032437
http://statistics.data.gov.uk/id/local-authority/29UP,Tonbridge & Malling Borough Council,7/12/2023,0012008776/2,12008776, 9.95,CCS Media Ltd,00018000,,Delivery Expenses,Information Technology,D27KD000044069,410032437
http://statistics.data.gov.uk/id/local-authority/29UP,Tonbridge & Malling Borough Council,7/12/2023,0012008777/1,12008777, 750.00,Canon (UK) Limited,00298700,,Maintenance - Ancillary Equip,Information Technology,D27KD000040137,
http://statistics.data.gov.uk/id/local-authority/29UP,Tonbridge & Malling Borough Council,7/12/2023,0012008777/2,12008777, 138.00,Canon (UK) Limited,00298700,,Maintenance - Ancillary Equip,Information Technology,D27KD000040137,
http://statistics.data.gov.uk/id/local-authority/29UP,Tonbridge & Malling Borough Council,7/12/2023,0012008778/1,12008778, 364.10,KCS - KCC,00054200,,Leasing Charges,Multi Function Devices,D22GB000044038,
http://statistics.data.gov.uk/id/local-authority/29UP,Tonbridge & Malling Borough Council,7/12/2023,0012008779/1,12008779, 59.70,KCS - KCC,00054200,,Leasing Charges,Multi Function Devices,D22GB000044038,
http://statistics.data.gov.uk/id/local-authority/29UP,Tonbridge & Malling Borough Council,7/12/2023,0021038665/3,21038665, 840.00,SWS Countryside & Landscape,01567200,,Health & Safety - Trees,Countryside/Woodland Mgt,B22LG000044045,
http://statistics.data.gov.uk/id/local-authority/29UP,Tonbridge & Malling Borough Council,7/12/2023,0021038666/1,21038666, 1840.00,SWS Countryside & Landscape,01567200,,Health & Safety - Trees,Countryside/Woodland Mgt,B22LG000044045,210057273
http://statistics.data.gov.uk/id/local-authority/29UP,Tonbridge & Malling Borough Council,7/12/2023,0021038667/3,21038667, 8.07,REDACTED PERSONAL DATA,01906500,,Maintenance of Grounds,Tonbridge Castle Grounds,B22LB000020402,
http://statistics.data.gov.uk/id/local-authority/29UP,Tonbridge & Malling Borough Council,7/12/2023,0021038668/1,21038668, 43.00,REDACTED PERSONAL DATA,01528400,,Twinning Committee Expenses,Twinning Committee,D29LJ000048009,
http://statistics.data.gov.uk/id/local-authority/29UP,Tonbridge & Malling Borough Council,7/12/2023,0021038669/1,21038669, 260.00,G C Industrial Heating Services,00578100,,Maintenance of Grounds,Cemetery,B26MP000020402,210057287
http://statistics.data.gov.uk/id/local-authority/29UP,Tonbridge & Malling Borough Council,7/12/2023,0021038670/1,21038670, 513.32,Landscape Services Ltd,00057600,,Maintenance of Grounds,Tonbridge Castle Grounds,B22LB000020402,210057293
http://statistics.data.gov.uk/id/local-authority/29UP,Tonbridge & Malling Borough Council,7/12/2023,0021038671/1,21038671, 2234.50,Clear Skies Software Ltd,00579500,,Purchases,Cemetery,B26MP000040101,210057139
http://statistics.data.gov.uk/id/local-authority/29UP,Tonbridge & Malling Borough Council,7/12/2023,0021038672/3,21038672, 1096.50,Carrington West Limited,01844500,,Temporary Staff,Planning Sals&Overheads,D01AJDJ0111300,
http://statistics.data.gov.uk/id/local-authority/29UP,Tonbridge & Malling Borough Council,7/12/2023,0022027895/3,22027895, 5389.65,Ward Security LTD,01490000,,Dog Warden,Street Scene,H23SD000044100,
http://statistics.data.gov.uk/id/local-authority/29UP,Tonbridge & Malling Borough Council,7/12/2023,0022027896/1,22027896, 766.00,Premiere Projects,00201200,,Other Expenses,Disabled Facilities Grant Mand,P03AC000009908,
http://statistics.data.gov.uk/id/local-authority/29UP,Tonbridge & Malling Borough Council,7/12/2023,0022027897/3,22027897, 735.00,Countrystyle Group,00835900,781981681,Collection of Card,Dry Recycling,H34SR000054008,
http://statistics.data.gov.uk/id/local-authority/29UP,Tonbridge & Malling Borough Council,7/12/2023,0022027898/1,22027898, 864.00,Town & Country Housing Group,01385400,,Other Expenses,Disabled Facilities Grant Mand,P03AC000009908,
http://statistics.data.gov.uk/id/local-authority/29UP,Tonbridge & Malling Borough Council,7/12/2023,0022027899/1,22027899, 5300.00,Dolphin Stairlifts,00698900,,Other Expenses,Disabled Facilities Grant Mand,P03AC000009908,
http://statistics.data.gov.uk/id/local-authority/29UP,Tonbridge & Malling Borough Council,7/12/2023,0022027900/1,22027900, 916.28,Town & Country Housing Group,01385400,,Other Expenses,Disabled Facilities Grant Mand,P03AC000009908,
http://statistics.data.gov.uk/id/local-authority/29UP,Tonbridge & Malling Borough Council,7/12/2023,0022027901/1,22027901, 6321.42,Accessible Solutions LTD,01539700,,Other Expenses,Disabled Facilities Grant Mand,P03AC000009908,
http://statistics.data.gov.uk/id/local-authority/29UP,Tonbridge & Malling Borough Council,7/12/2023,0022027902/1,22027902, 450.00,Landfill Systems Maintenance Ltd,01311000,,Contaminated Land Site Inspect,Environmental Protection,H32SN000054018,
http://statistics.data.gov.uk/id/local-authority/29UP,Tonbridge & Malling Borough Council,7/12/2023,0031019551/3,31019551, 26.96,B&Q/Screwfix Direct(TradeUKAccount),00141300,,Purchases,Boro Highways & Emergency Oper,E01AA000040101,
http://statistics.data.gov.uk/id/local-authority/29UP,Tonbridge & Malling Borough Council,7/12/2023,0031019553/3,31019553, 385.20,Monitor Pest Control Ltd,01476700,,CCTV Monitoring Station,Security Services Management,E09GA000051020,
http://statistics.data.gov.uk/id/local-authority/29UP,Tonbridge & Malling Borough Council,7/12/2023,0031019554/1,31019554, 3475.00,DSSL Group Ltd,01839500,,CCTV Monitoring Station,Security Services Management,E09GA000051020,310042803
http://statistics.data.gov.uk/id/local-authority/29UP,Tonbridge & Malling Borough Council,7/12/2023,0031019555/3,31019555, 195.48,British Telecommunications Plc,00012800,,Maintenance - General,Security Services Management,E09GA000040135,
http://statistics.data.gov.uk/id/local-authority/29UP,Tonbridge & Malling Borough Council,7/12/2023,0031019556/3,31019556, 3350.67,Tonbridge & Malling Leisure Trust,01469100,,Ticket Refunds - Lower Castle,Parking Off-Street,E10HAE01344199,
http://statistics.data.gov.uk/id/local-authority/29UP,Tonbridge & Malling Borough Council,7/12/2023,0031019557/3,31019557, 195.48,British Telecommunications Plc,00012800,,Maintenance - General,Security Services Management,E09GA000040135,
http://statistics.data.gov.uk/id/local-authority/29UP,Tonbridge & Malling Borough Council,7/12/2023,0031019558/1,31019558, 498.00,SKF Contractors Ltd,00092000,621768141,Premises Repairs & Maintenance,Parking Off-Street,E10HA000020601,310043072
http://statistics.data.gov.uk/id/local-authority/29UP,Tonbridge & Malling Borough Council,7/12/2023,0031019559/1,31019559, 710.00,Archway Highway Services Ltd,01398000,,Premises Repairs & Maintenance,Parking On-Street,E10HD000020601,310043066
http://statistics.data.gov.uk/id/local-authority/29UP,Tonbridge & Malling Borough Council,7/12/2023,0031019559/2,31019559, 536.25,Archway Highway Services Ltd,01398000,,Premises Repairs & Maintenance,Parking On-Street,E10HD000020601,310043066
http://statistics.data.gov.uk/id/local-authority/29UP,Tonbridge & Malling Borough Council,7/12/2023,0031019560/1,31019560, 532.50,Archway Highway Services Ltd,01398000,,Contract Payments,Electric Veh Charging Points,P01EA000009904,310043079
http://statistics.data.gov.uk/id/local-authority/29UP,Tonbridge & Malling Borough Council,7/12/2023,0031019561/1,31019561, 177.50,Archway Highway Services Ltd,01398000,,Premises Repairs & Maintenance,Parking On-Street,E10HD000020601,310043044
http://statistics.data.gov.uk/id/local-authority/29UP,Tonbridge & Malling Borough Council,7/12/2023,0031019562/1,31019562, 250.00,Arnold & Court Ltd,01411300,,Premises Repairs & Maintenance,Parking Off-Street,E10HA000020601,310043047
http://statistics.data.gov.uk/id/local-authority/29UP,Tonbridge & Malling Borough Council,7/12/2023,0031019563/1,31019563, 375.00,Arnold & Court Ltd,01411300,,Premises Repairs & Maintenance,Parking Off-Street,E10HA000020601,310043081
http://statistics.data.gov.uk/id/local-authority/29UP,Tonbridge & Malling Borough Council,7/12/2023,0031019564/1,31019564, 340.00,Arnold & Court Ltd,01411300,,Premises Repairs & Maintenance,Parking Off-Street,E10HA000020601,310043026
http://statistics.data.gov.uk/id/local-authority/29UP,Tonbridge & Malling Borough Council,7/12/2023,0031019565/1,31019565, 200.00,Arnold & Court Ltd,01411300,,Bridge Maintenance,Open Spaces & Amenity Areas,B22LE000020505,210057295
http://statistics.data.gov.uk/id/local-authority/29UP,Tonbridge & Malling Borough Council,7/12/2023,0031019565/2,31019565, 160.00,Arnold & Court Ltd,01411300,,Bridge Maintenance,Open Spaces & Amenity Areas,B22LE000020505,210057295
http://statistics.data.gov.uk/id/local-authority/29UP,Tonbridge & Malling Borough Council,7/12/2023,0031019566/1,31019566, 99.75,Arnold & Court Ltd,01411300,,Premises Repairs & Maintenance,Parking Off-Street,E10HA000020601,310043081
http://statistics.data.gov.uk/id/local-authority/29UP,Tonbridge & Malling Borough Council,7/12/2023,0031019566/2,31019566, 200.00,Arnold & Court Ltd,01411300,,BRREP Servicing - ext lighting,Tonbridge Castle / CAB,M15KFP20001941,310043081
http://statistics.data.gov.uk/id/local-authority/29UP,Tonbridge & Malling Borough Council,7/12/2023,0031019566/3,31019566, 200.25,Arnold & Court Ltd,01411300,,BRREP Hard paving surface rep,Shops & Maisonettes,M15NAP20001946,310043081
http://statistics.data.gov.uk/id/local-authority/29UP,Tonbridge & Malling Borough Council,7/12/2023,0031019567/1,31019567, 215.00,Arnold & Court Ltd,01411300,,Bridge Maintenance,Open Spaces & Amenity Areas,B22LE000020505,310043083
http://statistics.data.gov.uk/id/local-authority/29UP,Tonbridge & Malling Borough Council,7/12/2023,0031019567/2,31019567, 260.00,Arnold & Court Ltd,01411300,,Repair & Mtce of Fixed Plant,Boro Highways & Emergency Oper,E01AA000020501,310043083
http://statistics.data.gov.uk/id/local-authority/29UP,Tonbridge & Malling Borough Council,7/12/2023,0031019568/1,31019568, 975.00,Arnold & Court Ltd,01411300,,Premises Repairs & Maintenance,Parking Off-Street,E10HA000020601,310043084
http://statistics.data.gov.uk/id/local-authority/29UP,Tonbridge & Malling Borough Council,7/12/2023,0031019569/1,31019569, 950.00,Arnold & Court Ltd,01411300,,Bridge Maintenance,Open Spaces & Amenity Areas,B22LE000020505,210057216
http://statistics.data.gov.uk/id/local-authority/29UP,Tonbridge & Malling Borough Council,7/12/2023,0031019570/1,31019570, 125.00,Arnold & Court Ltd,01411300,,Repair & Mtce of Fixed Plant,Boro Highways & Emergency Oper,E01AA000020501,310043068
http://statistics.data.gov.uk/id/local-authority/29UP,Tonbridge & Malling Borough Council,7/12/2023,0031019570/2,31019570, 100.00,Arnold & Court Ltd,01411300,,Premises Repairs & Maintenance,Parking Off-Street,E10HA000020601,310043068
http://statistics.data.gov.uk/id/local-authority/29UP,Tonbridge & Malling Borough Council,7/12/2023,0031019570/3,31019570, 200.00,Arnold & Court Ltd,01411300,,Premises Repairs & Maintenance,Parking Off-Street,E10HA000020601,310043068
http://statistics.data.gov.uk/id/local-authority/29UP,Tonbridge & Malling Borough Council,7/12/2023,0031019570/4,31019570, 75.00,Arnold & Court Ltd,01411300,,Car Parking Action Plan,Parking On-Street,E10HD000020801,310043068
http://statistics.data.gov.uk/id/local-authority/29UP,Tonbridge & Malling Borough Council,7/12/2023,0031019571/1,31019571, 1550.00,Arnold & Court Ltd,01411300,,Initial Furniture & Equipment,Cap Ren CCTV,P01BALLCP09906,310043039
http://statistics.data.gov.uk/id/local-authority/29UP,Tonbridge & Malling Borough Council,7/12/2023,0031019572/1,31019572, 575.00,Arnold & Court Ltd,01411300,,Premises Repairs & Maintenance,Parking Off-Street,E10HA000020601,310043031
http://statistics.data.gov.uk/id/local-authority/29UP,Tonbridge & Malling Borough Council,7/12/2023,0031019573/1,31019573, 400.00,Arnold & Court Ltd,01411300,,Premises Repairs & Maintenance,Parking Off-Street,E10HA000020601,310043059
http://statistics.data.gov.uk/id/local-authority/29UP,Tonbridge & Malling Borough Council,7/12/2023,0031019573/2,31019573, 200.00,Arnold & Court Ltd,01411300,,BRREP Drain and gully cleaning,Kings Hill Offices - Ext Areas,M15KAP20001975,310043059
http://statistics.data.gov.uk/id/local-authority/29UP,Tonbridge & Malling Borough Council,7/12/2023,0031019574/1,31019574, 400.00,Arnold & Court Ltd,01411300,,Car Parking Action Plan,Parking On-Street,E10HD000020801,310043046
http://statistics.data.gov.uk/id/local-authority/29UP,Tonbridge & Malling Borough Council,7/12/2023,0031019575/1,31019575, 200.00,Arnold & Court Ltd,01411300,,Premises Repairs & Maintenance,Parking Off-Street,E10HAE00620601,310043028
http://statistics.data.gov.uk/id/local-authority/29UP,Tonbridge & Malling Borough Council,7/12/2023,0031019576/1,31019576, 275.00,Arnold & Court Ltd,01411300,,Premises Repairs & Maintenance,Parking Off-Street,E10HA000020601,310043052
http://statistics.data.gov.uk/id/local-authority/29UP,Tonbridge & Malling Borough Council,7/12/2023,0031019576/2,31019576, 100.00,Arnold & Court Ltd,01411300,,Premises Repairs & Maintenance,Parking On-Street,E10HD000020601,310043052
http://statistics.data.gov.uk/id/local-authority/29UP,Tonbridge & Malling Borough Council,7/12/2023,0031019576/3,31019576, 100.00,Arnold & Court Ltd,01411300,,BRREP Hard paving surface rep,Shops & Maisonettes,M15NAP20001946,310043052
http://statistics.data.gov.uk/id/local-authority/29UP,Tonbridge & Malling Borough Council,7/12/2023,0031019577/1,31019577, 200.00,Arnold & Court Ltd,01411300,,Premises Repairs & Maintenance,Parking On-Street,E10HD000020601,310043048
http://statistics.data.gov.uk/id/local-authority/29UP,Tonbridge & Malling Borough Council,7/12/2023,0031019578/1,31019578, 200.00,Arnold & Court Ltd,01411300,,Premises Repairs & Maintenance,Parking On-Street,E10HD000020601,310043029
http://statistics.data.gov.uk/id/local-authority/29UP,Tonbridge & Malling Borough Council,7/12/2023,0031019579/1,31019579, 200.00,Arnold & Court Ltd,01411300,,Premises Repairs & Maintenance,Parking Off-Street,E10HAE00620601,310043014
http://statistics.data.gov.uk/id/local-authority/29UP,Tonbridge & Malling Borough Council,7/12/2023,0031019580/1,31019580, 250.00,Arnold & Court Ltd,01411300,,Premises Repairs & Maintenance,Parking Off-Street,E10HA000020601,310043009
http://statistics.data.gov.uk/id/local-authority/29UP,Tonbridge & Malling Borough Council,7/12/2023,0031019581/1,31019581, 200.00,Arnold & Court Ltd,01411300,,Sandbags,Civil Contingencies,D33NA000040128,310043002
http://statistics.data.gov.uk/id/local-authority/29UP,Tonbridge & Malling Borough Council,7/12/2023,0031019581/2,31019581, 200.00,Arnold & Court Ltd,01411300,,Premises Repairs & Maintenance,Parking Off-Street,E10HA000020601,310043002
http://statistics.data.gov.uk/id/local-authority/29UP,Tonbridge & Malling Borough Council,7/12/2023,0031019582/1,31019582, 250.00,Arnold & Court Ltd,01411300,,Premises Repairs & Maintenance,Parking Off-Street,E10HA000020601,310043004
http://statistics.data.gov.uk/id/local-authority/29UP,Tonbridge & Malling Borough Council,7/12/2023,0031019583/1,31019583, 1330.32,Duke Contractors Ltd,00082900,790980095,Maintenance of Grounds,Sports Grounds,B13ETCARP20402,210057141
http://statistics.data.gov.uk/id/local-authority/29UP,Tonbridge & Malling Borough Council,7/12/2023,0031019583/2,31019583, 2988.87,Duke Contractors Ltd,00082900,790980095,Maintenance of Grounds,Sports Grounds,B13ETCARP20402,210057141
http://statistics.data.gov.uk/id/local-authority/29UP,Tonbridge & Malling Borough Council,7/12/2023,0031019586/1,31019586, 130.65,Imperial Civil Enforcement Solutions,00057200,,Adjudication & Enforcement Ser,Parking Off-Street,E10HA000044230,
http://statistics.data.gov.uk/id/local-authority/29UP,Tonbridge & Malling Borough Council,7/12/2023,0032010308/1,32010308, 1.53,Greenham Trading Ltd,00127900,745138823,Protective Clothing,Planning Sals&Overheads,D01AJDJ0142001,320003528
http://statistics.data.gov.uk/id/local-authority/29UP,Tonbridge & Malling Borough Council,7/12/2023,0032010309/3,32010309, 1752.65,The Oyster Partnership,01196400,,Temporary Staff,Planning Sals&Overheads,D01AJDJ0111300,
http://statistics.data.gov.uk/id/local-authority/29UP,Tonbridge & Malling Borough Council,7/12/2023,0032010310/3,32010310, 1333.50,The Oyster Partnership,01196400,,Temporary Staff,Planning Sals&Overheads,D01AJDJ0111300,
http://statistics.data.gov.uk/id/local-authority/29UP,Tonbridge & Malling Borough Council,7/12/2023,0032010311/3,32010311, 2227.75,Hays Specialist Recruitment Limited,01879200,773695871,Temporary Staff,Planning Sals&Overheads,D01AJDJ0111300,
http://statistics.data.gov.uk/id/local-authority/29UP,Tonbridge & Malling Borough Council,7/12/2023,0032010312/1,32010312, 7.99,Greenham Trading Ltd,00127900,745138823,Protective Clothing,Planning Sals&Overheads,D01AJDJ0142001,320003528
http://statistics.data.gov.uk/id/local-authority/29UP,Tonbridge & Malling Borough Council,7/12/2023,0032010313/3,32010313, 2250.00,G2 Recruitment Solutions,01786000,,Temporary Staff,Planning Sals&Overheads,D01AJDJ0111300,
http://statistics.data.gov.uk/id/local-authority/29UP,Tonbridge & Malling Borough Council,7/12/2023,0032010314/3,32010314, 1630.13,Carrington West Limited,01844500,,Temporary Staff,Planning Sals&Overheads,D01AJDJ0111300,
http://statistics.data.gov.uk/id/local-authority/29UP,Tonbridge & Malling Borough Council,7/12/2023,0032010315/3,32010315, 1759.50,Carrington West Limited,01844500,,Temporary Staff,Planning Sals&Overheads,D01AJDJ0111300,
http://statistics.data.gov.uk/id/local-authority/29UP,Tonbridge & Malling Borough Council,7/12/2023,0032010316/3,32010316, 1759.50,Carrington West Limited,01844500,,Temporary Staff,Planning Sals&Overheads,D01AJDJ0111300,
http://statistics.data.gov.uk/id/local-authority/29UP,Tonbridge & Malling Borough Council,7/12/2023,0032010317/1,32010317, 235.62,KM Media Group Ltd,00053900,,Advertising General,Development Management,A01ABZ99944216,320003520
http://statistics.data.gov.uk/id/local-authority/29UP,Tonbridge & Malling Borough Council,7/12/2023,0032010318/1,32010318, 1000.00,JBA Consulting,01599000,665300941,Development of Local Plan,Development of Local Plan,A01AE000044023,320003466
http://statistics.data.gov.uk/id/local-authority/29UP,Tonbridge & Malling Borough Council,7/12/2023,0032010319/1,32010319, 2160.75,Hays Specialist Recruitment Limited,01879200,773695871,Temporary Staff,Planning Sals&Overheads,D01AJDJ0111300,
http://statistics.data.gov.uk/id/local-authority/29UP,Tonbridge & Malling Borough Council,7/12/2023,0041035648/3,41035648, 112.00,Adelante Software Limited,01393800,812115871,Credit Card Commission,Banking Arrangements,D43QK000044082,
http://statistics.data.gov.uk/id/local-authority/29UP,Tonbridge & Malling Borough Council,7/12/2023,0041035660/3,41035660, 1022.70,Morgan Hunt UK Ltd,01086900,,Temporary Staff,Finance Sals&Overheads,D01AFDF1111300,
http://statistics.data.gov.uk/id/local-authority/29UP,Tonbridge & Malling Borough Council,7/12/2023,0041035661/3,41035661, 4489.94,Rundle & Co Ltd,00087200,,Bailiffs Commission,Local Revenue & NNDR Collect,D41QA000044075,
http://statistics.data.gov.uk/id/local-authority/29UP,Tonbridge & Malling Borough Council,7/12/2023,0041035662/3,41035662, 46.67,Rundle & Co Ltd,00087200,,Bailiffs Commission,Local Revenue & NNDR Collect,D41QA000044075,
http://statistics.data.gov.uk/id/local-authority/29UP,Tonbridge & Malling Borough Council,7/12/2023,0041035664/3,41035664, 20.00,Computershare Voucher Services,01212600,,Childcare Scheme,Finance Sals&Overheads,D01AFDF0911136,
http://statistics.data.gov.uk/id/local-authority/29UP,Tonbridge & Malling Borough Council,7/12/2023,0041035664/4,41035664, 1.40,Computershare Voucher Services,01212600,,National Insurance,Finance Sals&Overheads,D01AFDF0911191,
http://statistics.data.gov.uk/id/local-authority/29UP,Tonbridge & Malling Borough Council,7/12/2023,0041035664/5,41035664, 20.00,Computershare Voucher Services,01212600,,Childcare Scheme,Env Hlth & Hsg Sals&Overheads,D01AVDV0211136,
http://statistics.data.gov.uk/id/local-authority/29UP,Tonbridge & Malling Borough Council,7/12/2023,0041035664/6,41035664, 1.40,Computershare Voucher Services,01212600,,National Insurance,Env Hlth & Hsg Sals&Overheads,D01AVDV0211191,
http://statistics.data.gov.uk/id/local-authority/29UP,Tonbridge & Malling Borough Council,7/12/2023,0041035664/7,41035664, 243.00,Computershare Voucher Services,01212600,,Childcare Scheme,Env Hlth & Hsg Sals&Overheads,D01AVDV0711136,
http://statistics.data.gov.uk/id/local-authority/29UP,Tonbridge & Malling Borough Council,7/12/2023,0041035664/8,41035664, 17.01,Computershare Voucher Services,01212600,,National Insurance,Env Hlth & Hsg Sals&Overheads,D01AVDV0711191,
http://statistics.data.gov.uk/id/local-authority/29UP,Tonbridge & Malling Borough Council,7/12/2023,0041035668/1,41035668, 413.43,Maidstone Borough Council,01173700,,Bailiffs Commission,Local Revenue & NNDR Collect,D41QA000044075,
http://statistics.data.gov.uk/id/local-authority/29UP,Tonbridge & Malling Borough Council,7/12/2023,0041035669/1,41035669, 1822.11,Maidstone Borough Council,01173700,,Bailiffs Commission,Local Revenue & NNDR Collect,D41QA000044075,
http://statistics.data.gov.uk/id/local-authority/29UP,Tonbridge & Malling Borough Council,7/12/2023,0041035670/1,41035670, 80.00,WorldPay Ltd,01402000,991280207,Credit Card Commission,Banking Arrangements,D43QK000044082,
http://statistics.data.gov.uk/id/local-authority/29UP,Tonbridge & Malling Borough Council,7/12/2023,0041035670/2,41035670, 60.32,WorldPay Ltd,01402000,991280207,Credit Card Commission,Banking Arrangements,D43QK000044082,
http://statistics.data.gov.uk/id/local-authority/29UP,Tonbridge & Malling Borough Council,7/12/2023,0041035670/3,41035670, 0.16,WorldPay Ltd,01402000,991280207,Credit Card Commission,Banking Arrangements,D43QK000044082,
http://statistics.data.gov.uk/id/local-authority/29UP,Tonbridge & Malling Borough Council,7/12/2023,0041035671/1,41035671, 80.00,WorldPay Ltd,01402000,991280207,Credit Card Commission,Banking Arrangements,D43QK000044082,
http://statistics.data.gov.uk/id/local-authority/29UP,Tonbridge & Malling Borough Council,7/12/2023,0041035671/2,41035671, 73.04,WorldPay Ltd,01402000,991280207,Credit Card Commission,Banking Arrangements,D43QK000044082,
http://statistics.data.gov.uk/id/local-authority/29UP,Tonbridge & Malling Borough Council,7/12/2023,0041035671/3,41035671, 1.52,WorldPay Ltd,01402000,991280207,Credit Card Commission,Banking Arrangements,D43QK000044082,
http://statistics.data.gov.uk/id/local-authority/29UP,Tonbridge & Malling Borough Council,7/12/2023,0041035672/1,41035672, 80.00,WorldPay Ltd,01402000,991280207,Credit Card Commission,Banking Arrangements,D43QK000044082,
http://statistics.data.gov.uk/id/local-authority/29UP,Tonbridge & Malling Borough Council,7/12/2023,0041035672/2,41035672, 170.32,WorldPay Ltd,01402000,991280207,Credit Card Commission,Banking Arrangements,D43QK000044082,
http://statistics.data.gov.uk/id/local-authority/29UP,Tonbridge & Malling Borough Council,7/12/2023,0041035672/3,41035672, 0.40,WorldPay Ltd,01402000,991280207,Credit Card Commission,Banking Arrangements,D43QK000044082,
http://statistics.data.gov.uk/id/local-authority/29UP,Tonbridge & Malling Borough Council,7/12/2023,0041035675/1,41035675, 1124.54,King & Shaxson Investments,01411100,,Professional Fees,Treasury Management,D43QT000044001,
http://statistics.data.gov.uk/id/local-authority/29UP,Tonbridge & Malling Borough Council,7/12/2023,0051008826/3,51008826, 18.00,Commercial Services Kent Ltd,01655800,,Criminal Records Bureau Checks,Recruitment Expenses,D10DA000013180,
http://statistics.data.gov.uk/id/local-authority/29UP,Tonbridge & Malling Borough Council,7/12/2023,0051008826/4,51008826, 7.50,Commercial Services Kent Ltd,01655800,,Criminal Records Bureau Checks,Recruitment Expenses,D10DA000013180,
http://statistics.data.gov.uk/id/local-authority/29UP,Tonbridge & Malling Borough Council,7/17/2023,0041035684/1,41035684, 70.88,Allpay Limited,01816500,,Giro / Swipe Card Charges,Local Revenue & NNDR Collect,D41QA000044083,
http://statistics.data.gov.uk/id/local-authority/29UP,Tonbridge & Malling Borough Council,7/19/2023,0011046493/3,11046493, 4716.80,Sharpe Pritchard,00600500,,Legal Fees,Legal Sals&Overheads,D01ARDR0044002,
http://statistics.data.gov.uk/id/local-authority/29UP,Tonbridge & Malling Borough Council,7/19/2023,0011046494/3,11046494, 230.99,KH Recruitment Ltd,01738900,,Temporary Staff,Personnel Sals&Overheads,D01ABDB0311300,
http://statistics.data.gov.uk/id/local-authority/29UP,Tonbridge & Malling Borough Council,7/19/2023,0011046495/3,11046495, 63.60,Kent Crisps Ltd,01806500,,Purchases,TIC Stock Account,K18AX000001002,
http://statistics.data.gov.uk/id/local-authority/29UP,Tonbridge & Malling Borough Council,7/19/2023,0011046496/1,11046496, 38.00,REDACTED PERSONAL DATA,01907200,,Purchases,Licences - Fee Paying,H27SH000040101,
http://statistics.data.gov.uk/id/local-authority/29UP,Tonbridge & Malling Borough Council,7/19/2023,0011046497/3,11046497, 1561.36,The Oyster Partnership,01196400,,Temporary Staff,Admin & Prop Sals&Overheads,D01AADA1111300,
http://statistics.data.gov.uk/id/local-authority/29UP,Tonbridge & Malling Borough Council,7/19/2023,0011046498/1,11046498, 416.00,Tonbridge & Malling Safer Towns,00103900,,Purchases,Tonbridge Gateway,D23TG000040101,
http://statistics.data.gov.uk/id/local-authority/29UP,Tonbridge & Malling Borough Council,7/19/2023,0011046502/1,11046502, 310.00,The Institute of Licensing,01362200,,Professional Fees,Licences - Fee Paying,H27SH000044001,
http://statistics.data.gov.uk/id/local-authority/29UP,Tonbridge & Malling Borough Council,7/19/2023,0011046503/3,11046503, 380.83,KCS - KCC,00054200,,Estate Management Charge,Land Review,D40PS000020400,
http://statistics.data.gov.uk/id/local-authority/29UP,Tonbridge & Malling Borough Council,7/19/2023,0011046504/3,11046504, 752.38,KCS - KCC,00054200,,Estate Management Charge,Land Review,D40PS000020400,
http://statistics.data.gov.uk/id/local-authority/29UP,Tonbridge & Malling Borough Council,7/19/2023,0011046505/3,11046505, 650.00,BML Building Services Ltd,01505000,,BRREP External decoration,PC - General,M15JAP20001921,
http://statistics.data.gov.uk/id/local-authority/29UP,Tonbridge & Malling Borough Council,7/19/2023,0011046506/3,11046506, 150.00,BML Building Services Ltd,01505000,,BRREP Response - General,PC - General,M15JAP50001997,
http://statistics.data.gov.uk/id/local-authority/29UP,Tonbridge & Malling Borough Council,7/19/2023,0011046507/3,11046507, 116.86,Chubb Fire & Security Ltd,00115400,174605362,BRREP Servicing-IntruderAlarm,Larkfield Leisure Centre,M15HDP20001939,
http://statistics.data.gov.uk/id/local-authority/29UP,Tonbridge & Malling Borough Council,7/19/2023,0011046508/3,11046508, 500.00,BML Building Services Ltd,01505000,,Repairs & Mtce to Buildings,Homelessness,C01AATNHS20101,
http://statistics.data.gov.uk/id/local-authority/29UP,Tonbridge & Malling Borough Council,7/19/2023,0011046509/1,11046509, 665.00,Matt Stephens,01802100,,Meeting Expenses,Committee Administration,D29LL000048020,
http://statistics.data.gov.uk/id/local-authority/29UP,Tonbridge & Malling Borough Council,7/19/2023,0011046510/3,11046510, 1375.00,11KBW Limited,01247900,,Legal Fees,Legal Sals&Overheads,D01ARDR0044002,
http://statistics.data.gov.uk/id/local-authority/29UP,Tonbridge & Malling Borough Council,7/19/2023,0011046511/3,11046511, 2299.00,Thomson Snell & Passmore,00101700,,Legal Fees,Legal Sals&Overheads,D01ARDR0044002,
http://statistics.data.gov.uk/id/local-authority/29UP,Tonbridge & Malling Borough Council,7/19/2023,0011046512/3,11046512, 1000.00,Thomson Snell & Passmore,00101700,,Legal Fees,Legal Sals&Overheads,D01ARDR0044002,
http://statistics.data.gov.uk/id/local-authority/29UP,Tonbridge & Malling Borough Council,7/19/2023,0011046513/1,11046513, 1030.00,G C Industrial Heating Services,00578100,,BRREP Response - General,Tonbridge Swimming Pool,M15HBP50001997,110070338
http://statistics.data.gov.uk/id/local-authority/29UP,Tonbridge & Malling Borough Council,7/19/2023,0011046514/1,11046514, 1330.00,G C Industrial Heating Services,00578100,,BRREP Servicing - Heating Syst,Leis Man Poult Wood Golf Centr,M15HEP20001934,110070339
http://statistics.data.gov.uk/id/local-authority/29UP,Tonbridge & Malling Borough Council,7/19/2023,0011046515/1,11046515, 302.00,Hadene Engineering Ltd,00041900,,BRREP Gas Soundness Test,Gibson Building West,M15KBP30001994,110070311
http://statistics.data.gov.uk/id/local-authority/29UP,Tonbridge & Malling Borough Council,7/19/2023,0011046515/2,11046515, 302.00,Hadene Engineering Ltd,00041900,,BRREP Gas Soundness Test,Gibson Building East,M15KGP30001994,110070311
http://statistics.data.gov.uk/id/local-authority/29UP,Tonbridge & Malling Borough Council,7/19/2023,0011046516/1,11046516, 1097.54,Chillmech Limited,00978700,,BRREP Servicing-Air Condition,Angel Centre,M15HAP20001935,110070291
http://statistics.data.gov.uk/id/local-authority/29UP,Tonbridge & Malling Borough Council,7/19/2023,0011046517/1,11046517, 1927.82,Chillmech Limited,00978700,,BRREP Servicing-Air Condition,Angel Centre,M15HAP20001935,110070298
http://statistics.data.gov.uk/id/local-authority/29UP,Tonbridge & Malling Borough Council,7/19/2023,0011046518/1,11046518, 97.50,NKM Fire Protection Ltd,01784600,,BRREP Servicing - FireAlarmSys,Tonbridge Swimming Pool,M15HBP20001937,110070317
http://statistics.data.gov.uk/id/local-authority/29UP,Tonbridge & Malling Borough Council,7/19/2023,0011046519/1,11046519, 180.00,G C Industrial Heating Services,00578100,,BRREP Servicing - Heating Syst,Gibson Building West,M15KBP20001934,110070280
http://statistics.data.gov.uk/id/local-authority/29UP,Tonbridge & Malling Borough Council,7/19/2023,0011046520/1,11046520, 78.50,Triple S Lift Services,01344900,,BRREP Servicing - lifts,Gibson Building East,M15KGP20001930,110070323
http://statistics.data.gov.uk/id/local-authority/29UP,Tonbridge & Malling Borough Council,7/19/2023,0011046521/1,11046521, 630.00,Lemon Drainage Services LTD,01761600,,BRREP Servicing - Pumping Stn,Pleasure Grounds & Open Spaces,M15HHP20001931,110070246
http://statistics.data.gov.uk/id/local-authority/29UP,Tonbridge & Malling Borough Council,7/19/2023,0011046522/1,11046522, 150.00,BML Building Services Ltd,01505000,,BRREP External decoration,PC - General,M15JAP20001921,110070324
http://statistics.data.gov.uk/id/local-authority/29UP,Tonbridge & Malling Borough Council,7/19/2023,0011046523/1,11046523, 116.60,NKM Fire Protection Ltd,01784600,,BRREP Servicing - FireAlarmSys,Tonbridge Swimming Pool,M15HBP20001937,110070319
http://statistics.data.gov.uk/id/local-authority/29UP,Tonbridge & Malling Borough Council,7/19/2023,0011046524/1,11046524, 1820.88,Triple S Lift Services,01344900,,BRREP Servicing - lifts,Angel Centre,M15HAP20001930,110070327
http://statistics.data.gov.uk/id/local-authority/29UP,Tonbridge & Malling Borough Council,7/19/2023,0011046525/1,11046525, 948.20,Coolburn Air Conditioning Ltd,01137900,,BRREP Servicing-Air Condition,Gibson Building West,M15KBP20001935,110070320
http://statistics.data.gov.uk/id/local-authority/29UP,Tonbridge & Malling Borough Council,7/19/2023,0011046526/3,11046526, 250.00,BML Building Services Ltd,01505000,,BRREP Response - General,Land Review,M15MAP50001997,
http://statistics.data.gov.uk/id/local-authority/29UP,Tonbridge & Malling Borough Council,7/19/2023,0011046527/3,11046527, 290.00,G C Industrial Heating Services,00578100,,BRREP Response - General,Leis Man Poult Wood Golf Centr,M15HEP50001997,
http://statistics.data.gov.uk/id/local-authority/29UP,Tonbridge & Malling Borough Council,7/19/2023,0011046528/3,11046528, 250.00,BML Building Services Ltd,01505000,,BRREP Window/door repairs,PC - General,M15JAP20001919,
http://statistics.data.gov.uk/id/local-authority/29UP,Tonbridge & Malling Borough Council,7/19/2023,0011046531/1,11046531, 500.00,BML Building Services Ltd,01505000,,BRREP Window/door repairs,Tonbridge Castle / CAB,M15KFP20001919,110070325
http://statistics.data.gov.uk/id/local-authority/29UP,Tonbridge & Malling Borough Council,7/19/2023,0011046533/1,11046533, 580.00,G C Industrial Heating Services,00578100,,BRREP Legionella Certification,Tonbridge Swimming Pool,M15HBP30001995,110070322
http://statistics.data.gov.uk/id/local-authority/29UP,Tonbridge & Malling Borough Council,7/19/2023,0011046534/1,11046534, 43525.00,G Baker Roofing Ltd,01664400,522705274,BRREP General Maintenance,Shops & Maisonettes,M15NAP10001900,110070294
http://statistics.data.gov.uk/id/local-authority/29UP,Tonbridge & Malling Borough Council,7/19/2023,0011046536/1,11046536, 90.02,Triple S Lift Services,01344900,,BRREP Servicing - lifts,Angel Centre,M15HAP20001930,110070018
http://statistics.data.gov.uk/id/local-authority/29UP,Tonbridge & Malling Borough Council,7/19/2023,0011046537/1,11046537, 250.00,Triple S Lift Services,01344900,,BRREP Servicing - lifts,Angel Centre,M15HAP20001930,110070019
http://statistics.data.gov.uk/id/local-authority/29UP,Tonbridge & Malling Borough Council,7/19/2023,0011046538/1,11046538, 310.00,Triple S Lift Services,01344900,,BRREP Servicing - lifts,Angel Centre,M15HAP20001930,110070286
http://statistics.data.gov.uk/id/local-authority/29UP,Tonbridge & Malling Borough Council,7/19/2023,0011046539/1,11046539, 1381.20,Westcountry Group,00656400,,Purchases,Central Stationery Stock A/c,K03AD000001002,110070331
http://statistics.data.gov.uk/id/local-authority/29UP,Tonbridge & Malling Borough Council,7/19/2023,0011046541/1,11046541, 782.00,Pillory Barn Design Studios,01898100,619155927,Marketing,Information & Publicity,D32MJ000044215,110070196
http://statistics.data.gov.uk/id/local-authority/29UP,Tonbridge & Malling Borough Council,7/19/2023,0012008780/1,12008780, 3200.00,Man and Machine Ltd,01857900,,Software Hire & Support,Information Technology,D27KD000044059,410032439
http://statistics.data.gov.uk/id/local-authority/29UP,Tonbridge & Malling Borough Council,7/19/2023,0012008781/1,12008781, 1301.78,NEC Software Solutions UK Ltd,01073900,202159745,Software Hire & Support,Information Technology,D27KD000044059,410032413
http://statistics.data.gov.uk/id/local-authority/29UP,Tonbridge & Malling Borough Council,7/19/2023,0012008782/1,12008782, 3782.00,ESRI (UK) Ltd,00746300,,Software Hire & Support,Information Technology,D27KD000044059,410032440
http://statistics.data.gov.uk/id/local-authority/29UP,Tonbridge & Malling Borough Council,7/19/2023,0012008784/3,12008784, 161.97,KCS - KCC,00054200,,Copy Charges,Multi Function Devices,D22GB000040125,
http://statistics.data.gov.uk/id/local-authority/29UP,Tonbridge & Malling Borough Council,7/19/2023,0012008784/4,12008784, 218.53,KCS - KCC,00054200,,Leasing Charges,Multi Function Devices,D22GB000044038,
http://statistics.data.gov.uk/id/local-authority/29UP,Tonbridge & Malling Borough Council,7/19/2023,0012008785/3,12008785, 19.61,KCS - KCC,00054200,,Copy Charges,Multi Function Devices,D22GB000040125,
http://statistics.data.gov.uk/id/local-authority/29UP,Tonbridge & Malling Borough Council,7/19/2023,0012008785/4,12008785, 218.53,KCS - KCC,00054200,,Leasing Charges,Multi Function Devices,D22GB000044038,
http://statistics.data.gov.uk/id/local-authority/29UP,Tonbridge & Malling Borough Council,7/19/2023,0012008786/3,12008786, 7245.00,Capita Secure Information Solutions Ltd,00817100,,Software Hire & Support,Information Technology,D27KD000044059,
http://statistics.data.gov.uk/id/local-authority/29UP,Tonbridge & Malling Borough Council,7/19/2023,0012008786/4,12008786, 1305.00,Capita Secure Information Solutions Ltd,00817100,,Software Hire & Support,Information Technology,D27KD000044059,
http://statistics.data.gov.uk/id/local-authority/29UP,Tonbridge & Malling Borough Council,7/19/2023,0021038673/1,21038673, 1524.00,Sport & Play Ltd,01118700,,Initial Furniture & Equipment,Capital Renewals Leisure,P05KGBC0309906,210057144
http://statistics.data.gov.uk/id/local-authority/29UP,Tonbridge & Malling Borough Council,7/19/2023,0021038674/3,21038674, 110.24,KCC - L.A.S.E.R Commercial Services ,00184300,,Electricity,Open Spaces & Amenity Areas,B22LE000021002,
http://statistics.data.gov.uk/id/local-authority/29UP,Tonbridge & Malling Borough Council,7/19/2023,0021038675/1,21038675, 1500.00,Green Leaf Tree & Landscapes Limited,01860500,,Health & Safety - Trees,Countryside/Woodland Mgt,B22LG000044045,210057254
http://statistics.data.gov.uk/id/local-authority/29UP,Tonbridge & Malling Borough Council,7/19/2023,0021038676/1,21038676, 610.00,G C Industrial Heating Services,00578100,,Maintenance of Grounds,Sports Grounds,B13ET000020402,210057300
http://statistics.data.gov.uk/id/local-authority/29UP,Tonbridge & Malling Borough Council,7/19/2023,0021038677/1,21038677, 260.00,G C Industrial Heating Services,00578100,,Maintenance of Grounds,Cemetery,B26MP000020402,210057299
http://statistics.data.gov.uk/id/local-authority/29UP,Tonbridge & Malling Borough Council,7/19/2023,0021038679/1,21038679, 72.30,G.L. & R.G. Bourne,00737500,,Gates / Security,Haysden Country Park,B22LC000044017,210057185
http://statistics.data.gov.uk/id/local-authority/29UP,Tonbridge & Malling Borough Council,7/19/2023,0021038680/1,21038680, 40.00,G.L. & R.G. Bourne,00737500,,Maintenance of Grounds,Haysden Country Park,B22LC000020402,210057185
http://statistics.data.gov.uk/id/local-authority/29UP,Tonbridge & Malling Borough Council,7/19/2023,0021038681/1,21038681, 527.40,G.L. & R.G. Bourne,00737500,,Gates / Security,Haysden Country Park,B22LC000044017,210057185
http://statistics.data.gov.uk/id/local-authority/29UP,Tonbridge & Malling Borough Council,7/19/2023,0021038682/1,21038682, 685.66,Atlas Facilities Managment Limited ,01075900,,Gates / Security,Patrolling,B22LF000044017,210057188
http://statistics.data.gov.uk/id/local-authority/29UP,Tonbridge & Malling Borough Council,7/19/2023,0021038683/1,21038683, 685.66,Atlas Facilities Managment Limited ,01075900,,Gates / Security,Patrolling,B22LF000044017,210057188
http://statistics.data.gov.uk/id/local-authority/29UP,Tonbridge & Malling Borough Council,7/19/2023,0021038684/1,21038684, 510.00,Arnold & Court Ltd,01411300,,Maintenance of Grounds,Tonbridge Castle Grounds,B22LB000020402,210057251
http://statistics.data.gov.uk/id/local-authority/29UP,Tonbridge & Malling Borough Council,7/19/2023,0021038685/1,21038685, 320.00,Arnold & Court Ltd,01411300,,Maintenance of Play Equipment,Open Spaces & Amenity Areas,B22LE000020503,210057249
http://statistics.data.gov.uk/id/local-authority/29UP,Tonbridge & Malling Borough Council,7/19/2023,0021038686/1,21038686, 2916.66,123 Pools,01907500,,Initial Furniture & Equipment,Capital Renewals Leisure,P05KGBC0409906,210057305
http://statistics.data.gov.uk/id/local-authority/29UP,Tonbridge & Malling Borough Council,7/19/2023,0021038687/1,21038687, 945.00,Robert Graham T/A Sustainable Land Manag,00040700,,Income,LLCP Facility Improv,P05FF000009907,210057168
http://statistics.data.gov.uk/id/local-authority/29UP,Tonbridge & Malling Borough Council,7/19/2023,0022027903/3,22027903, 1438.74,Ward Security LTD,01490000,,Dog Warden,Street Scene,H23SD000044100,
http://statistics.data.gov.uk/id/local-authority/29UP,Tonbridge & Malling Borough Council,7/19/2023,0022027904/3,22027904, 446.00,Monitor Pest Control Ltd,01476700,,Other Expenses,Pest Control,H24SE000048010,
http://statistics.data.gov.uk/id/local-authority/29UP,Tonbridge & Malling Borough Council,7/19/2023,0022027905/3,22027905, 1606.80,Lucy and Martin Recycling LTD,01694200,,Vehicle Licences,Dry Recycling,H34SR000030105,
http://statistics.data.gov.uk/id/local-authority/29UP,Tonbridge & Malling Borough Council,7/19/2023,0022027906/3,22027906, 709.67,KCC - L.A.S.E.R Commercial Services ,00184300,,Air Quality Monitoring,Environmental Protection,H32SN000054016,
http://statistics.data.gov.uk/id/local-authority/29UP,Tonbridge & Malling Borough Council,7/19/2023,0022027907/3,22027907, 1465.88,KCC - L.A.S.E.R Commercial Services ,00184300,,Electricity,Public Conveniences,H22SCH00921002,
http://statistics.data.gov.uk/id/local-authority/29UP,Tonbridge & Malling Borough Council,7/19/2023,0022027908/3,22027908, 490.00,Countrystyle Group,00835900,781981681,Collection of Card,Dry Recycling,H34SR000054008,
http://statistics.data.gov.uk/id/local-authority/29UP,Tonbridge & Malling Borough Council,7/19/2023,0022027909/1,22027909, 112.90,Scottish Water Business Stream Ltd,01641100,,Sewerage Charges,Public Conveniences,H22SC000024003,
http://statistics.data.gov.uk/id/local-authority/29UP,Tonbridge & Malling Borough Council,7/19/2023,0022027910/1,22027910, 418.00,Britains Limited,01743900,,Repairs & Mtce to Buildings,Homelessness,C01AATNPR20101,220003360
http://statistics.data.gov.uk/id/local-authority/29UP,Tonbridge & Malling Borough Council,7/19/2023,0022027911/1,22027911, 973.94,Town & Country Housing Group,01385400,,Other Expenses,Disabled Facilities Grant Mand,P03AC000009908,
http://statistics.data.gov.uk/id/local-authority/29UP,Tonbridge & Malling Borough Council,7/19/2023,0022027912/1,22027912, 6763.49,Acorn Maintenance Services,01036000,,Other Expenses,Disabled Facilities Grant Mand,P03AC000009908,
http://statistics.data.gov.uk/id/local-authority/29UP,Tonbridge & Malling Borough Council,7/19/2023,0022027913/1,22027913, 2604.67,Town & Country Housing Group,01385400,,Other Expenses,Disabled Facilities Grant Mand,P03AC000009908,
http://statistics.data.gov.uk/id/local-authority/29UP,Tonbridge & Malling Borough Council,7/19/2023,0022027914/1,22027914, 21371.60,Acorn Maintenance Services,01036000,,Other Expenses,Disabled Facilities Grant Mand,P03AC000009908,
http://statistics.data.gov.uk/id/local-authority/29UP,Tonbridge & Malling Borough Council,7/19/2023,0022027916/3,22027916, 99989.00,Urbaser LTD,01718800,,Contract Payments,Refuse Collection,H20SA000054001,
http://statistics.data.gov.uk/id/local-authority/29UP,Tonbridge & Malling Borough Council,7/19/2023,0022027918/3,22027918, 2450.00,On Site Wheelie Washers,01069700,,Other Expenses,Refuse Collection,H20SA000048010,
http://statistics.data.gov.uk/id/local-authority/29UP,Tonbridge & Malling Borough Council,7/19/2023,0022027919/1,22027919, 5252.29,Adaptec Mobilty Ltd,01785800,339578354,Other Expenses,Disabled Facilities Grant Mand,P03AC000009908,
http://statistics.data.gov.uk/id/local-authority/29UP,Tonbridge & Malling Borough Council,7/19/2023,0022027920/1,22027920, 756.32,Town & Country Housing Group,01385400,,Other Expenses,Disabled Facilities Grant Mand,P03AC000009908,
http://statistics.data.gov.uk/id/local-authority/29UP,Tonbridge & Malling Borough Council,7/19/2023,0031019591/1,31019591, 309.00,PSR Lighting & Signs Ltd,01265400,986561173,Maintenance of Grounds,Sports Grounds,B13ET000020402,310043045
http://statistics.data.gov.uk/id/local-authority/29UP,Tonbridge & Malling Borough Council,7/19/2023,0031019592/3,31019592, 53.46,Npower Ltd,01675800,,Electricity,Parking Off-Street,E10HA000021002,
http://statistics.data.gov.uk/id/local-authority/29UP,Tonbridge & Malling Borough Council,7/19/2023,0031019593/3,31019593, 81.62,Npower Ltd,01675800,,Electricity,Parking Off-Street,E10HA000021002,
http://statistics.data.gov.uk/id/local-authority/29UP,Tonbridge & Malling Borough Council,7/19/2023,0031019594/3,31019594, 239.82,Npower Ltd,01675800,,Electricity,Parking Off-Street,E10HA000021002,
http://statistics.data.gov.uk/id/local-authority/29UP,Tonbridge & Malling Borough Council,7/19/2023,0031019595/3,31019595, 85.42,Shell U.K. Oil Products Limited,01673300,,"Petrol, Diesel & Oil",Parking Off-Street,E10HA000030106,
http://statistics.data.gov.uk/id/local-authority/29UP,Tonbridge & Malling Borough Council,7/19/2023,0031019595/4,31019595, 85.41,Shell U.K. Oil Products Limited,01673300,,"Petrol, Diesel & Oil",Parking On-Street,E10HD000030106,
http://statistics.data.gov.uk/id/local-authority/29UP,Tonbridge & Malling Borough Council,7/19/2023,0031019597/3,31019597, 30.76,Kings Hill Garage Ltd,01546300,,Transport Repair & Maintenance,Parking Off-Street,E10HA000030103,
http://statistics.data.gov.uk/id/local-authority/29UP,Tonbridge & Malling Borough Council,7/19/2023,0031019597/4,31019597, 46.14,Kings Hill Garage Ltd,01546300,,Transport Repair & Maintenance,Parking On-Street,E10HD000030103,
http://statistics.data.gov.uk/id/local-authority/29UP,Tonbridge & Malling Borough Council,7/19/2023,0031019598/3,31019598, 28.54,Kings Hill Garage Ltd,01546300,,Transport Repair & Maintenance,Parking Off-Street,E10HA000030103,
http://statistics.data.gov.uk/id/local-authority/29UP,Tonbridge & Malling Borough Council,7/19/2023,0031019598/4,31019598, 42.81,Kings Hill Garage Ltd,01546300,,Transport Repair & Maintenance,Parking On-Street,E10HD000030103,
http://statistics.data.gov.uk/id/local-authority/29UP,Tonbridge & Malling Borough Council,7/19/2023,0031019599/3,31019599, 183.44,Kings Hill Garage Ltd,01546300,,Transport Repair & Maintenance,Parking Off-Street,E10HA000030103,
http://statistics.data.gov.uk/id/local-authority/29UP,Tonbridge & Malling Borough Council,7/19/2023,0031019599/4,31019599, 275.15,Kings Hill Garage Ltd,01546300,,Transport Repair & Maintenance,Parking On-Street,E10HD000030103,
http://statistics.data.gov.uk/id/local-authority/29UP,Tonbridge & Malling Borough Council,7/19/2023,0031019600/3,31019600, 205.07,KCC - L.A.S.E.R Commercial Services ,00184300,,Electricity,Parking Off-Street,E10HA000021002,
http://statistics.data.gov.uk/id/local-authority/29UP,Tonbridge & Malling Borough Council,7/19/2023,0031019602/1,31019602, 1698.84,DSSL Group Ltd,01839500,,Maintenance - General,Security Services Management,E09GA000040135,310043082
http://statistics.data.gov.uk/id/local-authority/29UP,Tonbridge & Malling Borough Council,7/19/2023,0031019603/1,31019603, 750.00,Archway Highway Services Ltd,01398000,,Maintenance of Grounds,Haysden Country Park,B22LCCARP20402,310043073
http://statistics.data.gov.uk/id/local-authority/29UP,Tonbridge & Malling Borough Council,7/19/2023,0031019604/3,31019604, 2681.42,CDER Group,01773300,,Adjudication & Enforcement Ser,Parking Off-Street,E10HA000044230,
http://statistics.data.gov.uk/id/local-authority/29UP,Tonbridge & Malling Borough Council,7/19/2023,0031019605/3,31019605, 2420.00,Tonbridge & Malling Leisure Trust,01469100,,Ticket Refunds - Lower Castle,Parking Off-Street,E10HAE01344199,
http://statistics.data.gov.uk/id/local-authority/29UP,Tonbridge & Malling Borough Council,7/19/2023,0032010323/5,32010323, 1296.00,REDACTED PERSONAL DATA,01907400,,Application & Appeals,Development Management,A01AB000044194,
http://statistics.data.gov.uk/id/local-authority/29UP,Tonbridge & Malling Borough Council,7/19/2023,0032010324/3,32010324, 1026.00,Vivid Resourcing,01773700,,Temporary Staff,Planning Sals&Overheads,D01AJDJ0111300,
http://statistics.data.gov.uk/id/local-authority/29UP,Tonbridge & Malling Borough Council,7/19/2023,0032010325/3,32010325, 1666.35,Tetlow King Planning Ltd,01290900,,Application & Appeals,Development Management,A01AB000044194,
http://statistics.data.gov.uk/id/local-authority/29UP,Tonbridge & Malling Borough Council,7/19/2023,0032010326/1,32010326, 2600.00,Robinson Escott Planning LLP,01653000,,Application & Appeals,Development Management,A01AB000044194,320003279
http://statistics.data.gov.uk/id/local-authority/29UP,Tonbridge & Malling Borough Council,7/19/2023,0032010326/2,32010326, 900.00,Robinson Escott Planning LLP,01653000,,Application & Appeals,Development Management,A01AB000044194,320003279
http://statistics.data.gov.uk/id/local-authority/29UP,Tonbridge & Malling Borough Council,7/19/2023,0032010327/3,32010327, 1648.50,The Oyster Partnership,01196400,,Temporary Staff,Planning Sals&Overheads,D01AJDJ0111300,
http://statistics.data.gov.uk/id/local-authority/29UP,Tonbridge & Malling Borough Council,7/19/2023,0032010328/3,32010328, 2227.25,Hays Specialist Recruitment Limited,01879200,773695871,Temporary Staff,Planning Sals&Overheads,D01AJDJ0311300,
http://statistics.data.gov.uk/id/local-authority/29UP,Tonbridge & Malling Borough Council,7/19/2023,0032010329/3,32010329, 2250.00,G2 Recruitment Solutions,01786000,,Temporary Staff,Planning Sals&Overheads,D01AJDJ0011300,
http://statistics.data.gov.uk/id/local-authority/29UP,Tonbridge & Malling Borough Council,7/19/2023,0032010330/1,32010330, 171.36,KM Media Group Ltd,00053900,,Advertising General,Development Management,A01ABZ99944216,320003531
http://statistics.data.gov.uk/id/local-authority/29UP,Tonbridge & Malling Borough Council,7/19/2023,0032010331/3,32010331, 1551.00,Carrington West Limited,01844500,,Temporary Staff,Planning Sals&Overheads,D01AJDJ0111300,
http://statistics.data.gov.uk/id/local-authority/29UP,Tonbridge & Malling Borough Council,7/19/2023,0032010332/3,32010332, 2212.50,Hays Specialist Recruitment Limited,01879200,773695871,Temporary Staff,Planning Sals&Overheads,D01AJDJ0311300,
http://statistics.data.gov.uk/id/local-authority/29UP,Tonbridge & Malling Borough Council,7/19/2023,0032010333/3,32010333, 2261.25,Hays Specialist Recruitment Limited,01879200,773695871,Temporary Staff,Planning Sals&Overheads,D01AJDJ0111300,
http://statistics.data.gov.uk/id/local-authority/29UP,Tonbridge & Malling Borough Council,7/19/2023,0041035677/3,41035677, 8735.00,Link Group,01039400,,Professional Fees,Treasury Management,D43QT000044001,
http://statistics.data.gov.uk/id/local-authority/29UP,Tonbridge & Malling Borough Council,7/19/2023,0041035685/3,41035685, 237.81,KCS - KCC,00054200,,Copy Charges,Multi Function Devices,D22GB000040125,
http://statistics.data.gov.uk/id/local-authority/29UP,Tonbridge & Malling Borough Council,7/19/2023,0041035685/4,41035685, 218.53,KCS - KCC,00054200,,Leasing Charges,Multi Function Devices,D22GB000044038,
http://statistics.data.gov.uk/id/local-authority/29UP,Tonbridge & Malling Borough Council,7/19/2023,0041035686/3,41035686, 672.06,Morgan Hunt UK Ltd,01086900,,Temporary Staff,Finance Sals&Overheads,D01AFDF1111300,
http://statistics.data.gov.uk/id/local-authority/29UP,Tonbridge & Malling Borough Council,7/19/2023,0041035687/3,41035687, 1121.63,Rundle & Co Ltd,00087200,,Bailiffs Commission,Local Revenue & NNDR Collect,D41QA000044075,
http://statistics.data.gov.uk/id/local-authority/29UP,Tonbridge & Malling Borough Council,7/21/2023,0041035696/1,41035696, 2520.00,H.M. Revenue & Customs,00048400,,Levy Payment,Apprenticeship Scheme,D10DE000013700,
http://statistics.data.gov.uk/id/local-authority/29UP,Tonbridge & Malling Borough Council,7/21/2023,0041035696/2,41035696, 1.00,H.M. Revenue & Customs,00048400,,Levy Payment,Apprenticeship Scheme,D10DE000013700,
http://statistics.data.gov.uk/id/local-authority/29UP,Tonbridge & Malling Borough Council,7/24/2023,0041035700/1,41035700, 2895.00,Information Commisioners Office,01417900,,Data Protection Act Registrati,Admin & Prop Sals&Overheads,D01AADA0048013,
http://statistics.data.gov.uk/id/local-authority/29UP,Tonbridge & Malling Borough Council,7/24/2023,0041035704/1,41035704, 20.19,WorldPay Ltd,01402000,991280207,Credit Card Commission,Banking Arrangements,D43QK000044082,
http://statistics.data.gov.uk/id/local-authority/29UP,Tonbridge & Malling Borough Council,7/24/2023,0041035705/1,41035705, 208.00,National Westminster Bank Plc,00069400,,Bank Charges,Banking Arrangements,D43QK000044222,
http://statistics.data.gov.uk/id/local-authority/29UP,Tonbridge & Malling Borough Council,7/26/2023,0011046529/3,11046529, 23.20,REDACTED PERSONAL DATA,01683000,,Castle Catering Provisions,Ton Castle Council Chamber,D21FC000041015,
http://statistics.data.gov.uk/id/local-authority/29UP,Tonbridge & Malling Borough Council,7/26/2023,0011046529/4,11046529, 13.32,REDACTED PERSONAL DATA,01683000,,Castle Catering Provisions,Ton Castle Council Chamber,D21FC000041015,
http://statistics.data.gov.uk/id/local-authority/29UP,Tonbridge & Malling Borough Council,7/26/2023,0011046532/1,11046532, 15465.00,Pier Contractors Limited,01902700,987590354,BRREP Asbestos monitoring,Leis Man Poult Wood Golf Centr,M15HEP30001993,110070283
http://statistics.data.gov.uk/id/local-authority/29UP,Tonbridge & Malling Borough Council,7/26/2023,0011046535/1,11046535, 2556.00,London Engineering (Fabrication) Ltd,01905200,256745377,BRREP General Maintenance,Tonbridge Castle / CAB,M15KFP10001900,110070329
http://statistics.data.gov.uk/id/local-authority/29UP,Tonbridge & Malling Borough Council,7/26/2023,0011046542/3,11046542, 875.00,Francis Taylor Building,01688700,,Legal Fees,Legal Sals&Overheads,D01ARDR0044002,
http://statistics.data.gov.uk/id/local-authority/29UP,Tonbridge & Malling Borough Council,7/26/2023,0011046543/1,11046543, 654.20,REDACTED PERSONAL DATA,01908900,,Legal Fees,Legal Sals&Overheads,D01ARDR0044002,
http://statistics.data.gov.uk/id/local-authority/29UP,Tonbridge & Malling Borough Council,7/26/2023,0011046544/3,11046544, 1482.30,TMS Protection Ltd,01744300,,Office Security,Ton Castle Council Chamber,D21FC000044047,
http://statistics.data.gov.uk/id/local-authority/29UP,Tonbridge & Malling Borough Council,7/26/2023,0011046544/4,11046544, 3296.70,TMS Protection Ltd,01744300,,Office Security,Tonbridge Gateway,D23TG000044047,
http://statistics.data.gov.uk/id/local-authority/29UP,Tonbridge & Malling Borough Council,7/26/2023,0011046545/1,11046545, 1000.00,REDACTED PERSONAL DATA,01908400,,Initiatives,UK Shared Prosperity Fund,D52TH000048135,
http://statistics.data.gov.uk/id/local-authority/29UP,Tonbridge & Malling Borough Council,7/26/2023,0011046546/1,11046546, 2000.00,Wateringbury Surgery,01906400,,Initiatives,UK Shared Prosperity Fund,D52TH000048135,
http://statistics.data.gov.uk/id/local-authority/29UP,Tonbridge & Malling Borough Council,7/26/2023,0011046548/1,11046548, 2000.00,Mereworth Parish Council,00064700,,Initiatives,UK Shared Prosperity Fund,D52TH000048135,
http://statistics.data.gov.uk/id/local-authority/29UP,Tonbridge & Malling Borough Council,7/26/2023,0011046549/1,11046549, 1000.00,Project Salus,01494100,,Initiatives,UK Shared Prosperity Fund,D52TH000048135,
http://statistics.data.gov.uk/id/local-authority/29UP,Tonbridge & Malling Borough Council,7/26/2023,0011046550/1,11046550, 2000.00,SWEET SENSTATIONS EATS & TREATS LTD,01749200,,Initiatives,UK Shared Prosperity Fund,D52TH000048135,
http://statistics.data.gov.uk/id/local-authority/29UP,Tonbridge & Malling Borough Council,7/26/2023,0011046551/1,11046551, 2000.00,21 Together,01909000,,Initiatives,UK Shared Prosperity Fund,D52TH000048135,
http://statistics.data.gov.uk/id/local-authority/29UP,Tonbridge & Malling Borough Council,7/26/2023,0011046552/1,11046552, 2000.00,Communigrow,01547600,,Initiatives,UK Shared Prosperity Fund,D52TH000048135,
http://statistics.data.gov.uk/id/local-authority/29UP,Tonbridge & Malling Borough Council,7/26/2023,0011046553/1,11046553, 1500.00,Larkfield Football Club,01554000,,Initiatives,UK Shared Prosperity Fund,D52TH000048135,
http://statistics.data.gov.uk/id/local-authority/29UP,Tonbridge & Malling Borough Council,7/26/2023,0011046554/1,11046554, 1000.00,Leybourne Parish Council,00162300,,Initiatives,UK Shared Prosperity Fund,D52TH000048135,
http://statistics.data.gov.uk/id/local-authority/29UP,Tonbridge & Malling Borough Council,7/26/2023,0011046555/1,11046555, 1000.00,REDACTED PERSONAL DATA,01908500,,Initiatives,UK Shared Prosperity Fund,D52TH000048135,
http://statistics.data.gov.uk/id/local-authority/29UP,Tonbridge & Malling Borough Council,7/26/2023,0011046556/1,11046556, 1890.00,REDACTED PERSONAL DATA,01906800,,Initiatives,UK Shared Prosperity Fund,D52TH000048135,
http://statistics.data.gov.uk/id/local-authority/29UP,Tonbridge & Malling Borough Council,7/26/2023,0011046557/1,11046557, 2000.00,Space 2 Be Me,01908600,,Initiatives,UK Shared Prosperity Fund,D52TH000048135,
http://statistics.data.gov.uk/id/local-authority/29UP,Tonbridge & Malling Borough Council,7/26/2023,0011046558/1,11046558, 1000.00,The Autism Apprentice,01906700,,Initiatives,UK Shared Prosperity Fund,D52TH000048135,
http://statistics.data.gov.uk/id/local-authority/29UP,Tonbridge & Malling Borough Council,7/26/2023,0011046559/1,11046559, 2000.00,The East Malling Centre/Community Larder,01168000,,Initiatives,UK Shared Prosperity Fund,D52TH000048135,
http://statistics.data.gov.uk/id/local-authority/29UP,Tonbridge & Malling Borough Council,7/26/2023,0011046560/1,11046560, 1000.00,Tonbridge Angels Football Club Ltd,01855700,,Initiatives,UK Shared Prosperity Fund,D52TH000048135,
http://statistics.data.gov.uk/id/local-authority/29UP,Tonbridge & Malling Borough Council,7/26/2023,0011046561/1,11046561, 2000.00,REDACTED PERSONAL DATA,01206000,,Initiatives,UK Shared Prosperity Fund,D52TH000048135,
http://statistics.data.gov.uk/id/local-authority/29UP,Tonbridge & Malling Borough Council,7/26/2023,0011046562/1,11046562, 1950.00,REDACTED PERSONAL DATA,01906600,,Initiatives,UK Shared Prosperity Fund,D52TH000048135,
http://statistics.data.gov.uk/id/local-authority/29UP,Tonbridge & Malling Borough Council,7/26/2023,0011046563/1,11046563, 1000.00,REDACTED PERSONAL DATA,01908300,,Initiatives,UK Shared Prosperity Fund,D52TH000048135,
http://statistics.data.gov.uk/id/local-authority/29UP,Tonbridge & Malling Borough Council,7/26/2023,0011046564/3,11046564, 1204.40,Sellick Partnership Group Limited,01336800,,Temporary Staff,Legal Sals&Overheads,D01ARDR0011300,
http://statistics.data.gov.uk/id/local-authority/29UP,Tonbridge & Malling Borough Council,7/26/2023,0011046565/3,11046565, 1217.80,Sellick Partnership Group Limited,01336800,,Temporary Staff,Legal Sals&Overheads,D01ARDR0011300,
http://statistics.data.gov.uk/id/local-authority/29UP,Tonbridge & Malling Borough Council,7/26/2023,0011046568/1,11046568, 78.00,Kent Area Ramblers Association,01747700,,Purchases,TIC Stock Account,K18AX000001002,
http://statistics.data.gov.uk/id/local-authority/29UP,Tonbridge & Malling Borough Council,7/26/2023,0011046569/3,11046569, 589.41,KH Recruitment Ltd,01738900,,Temporary Staff,Personnel Sals&Overheads,D01ABDB0311300,
http://statistics.data.gov.uk/id/local-authority/29UP,Tonbridge & Malling Borough Council,7/26/2023,0011046570/1,11046570, 1000.00,Malling Photographic Society,01908700,,Initiatives,UK Shared Prosperity Fund,D52TH000048135,
http://statistics.data.gov.uk/id/local-authority/29UP,Tonbridge & Malling Borough Council,7/26/2023,0011046571/1,11046571, 312.90,NewAuto Ltd T/A MOGO UK,00479100,,Purchases,Licences - Fee Paying,H27SH000040101,110070340
http://statistics.data.gov.uk/id/local-authority/29UP,Tonbridge & Malling Borough Council,7/26/2023,0011046575/3,11046575, 1211.40,The Oyster Partnership,01196400,,Temporary Staff,Legal Sals&Overheads,D01ARDR0011300,
http://statistics.data.gov.uk/id/local-authority/29UP,Tonbridge & Malling Borough Council,7/26/2023,0011046576/3,11046576, 627.93,KCS - KCC,00054200,,Gas,Buildings,D21FEDD6021003,
http://statistics.data.gov.uk/id/local-authority/29UP,Tonbridge & Malling Borough Council,7/26/2023,0011046577/3,11046577, 2715.17,KCS - KCC,00054200,,Electricity,Buildings,D21FEDD6021002,
http://statistics.data.gov.uk/id/local-authority/29UP,Tonbridge & Malling Borough Council,7/26/2023,0011046578/3,11046578, 1726.53,KCS - KCC,00054200,,Electricity,Buildings,D21FEDD5021002,
http://statistics.data.gov.uk/id/local-authority/29UP,Tonbridge & Malling Borough Council,7/26/2023,0011046579/3,11046579, 4573.86,KCS - KCC,00054200,,Electricity,Buildings,D21FEDD1021002,
http://statistics.data.gov.uk/id/local-authority/29UP,Tonbridge & Malling Borough Council,7/26/2023,0011046580/3,11046580, 366.30,KCS - KCC,00054200,,Gas,Buildings,D21FEDD1021003,
http://statistics.data.gov.uk/id/local-authority/29UP,Tonbridge & Malling Borough Council,7/26/2023,0011046581/3,11046581, 884.04,Canon (UK) Limited,00298700,,Purchases - Paper,Printing,D22GA000040102,
http://statistics.data.gov.uk/id/local-authority/29UP,Tonbridge & Malling Borough Council,7/26/2023,0011046582/3,11046582, 2081.79,Royal Mail,00086200,,Purchases,Mailsort Stock Account,K37BR000001002,
http://statistics.data.gov.uk/id/local-authority/29UP,Tonbridge & Malling Borough Council,7/26/2023,0011046582/4,11046582, 2.10,Royal Mail,00086200,,Purchases,Mailsort Stock Account,K37BR000001002,
http://statistics.data.gov.uk/id/local-authority/29UP,Tonbridge & Malling Borough Council,7/26/2023,0011046582/5,11046582, 8.91,Royal Mail,00086200,,Purchases,Mailsort Stock Account,K37BR000001002,
http://statistics.data.gov.uk/id/local-authority/29UP,Tonbridge & Malling Borough Council,7/26/2023,0011046583/3,11046583, 46.72,Royal Mail,00086200,,Postages - Business Reply,Electoral Registration,D31MF000045003,
http://statistics.data.gov.uk/id/local-authority/29UP,Tonbridge & Malling Borough Council,7/26/2023,0011046583/4,11046583, 15.00,Royal Mail,00086200,,Purchases,Business Reply Stock Account,K14AT000001002,
http://statistics.data.gov.uk/id/local-authority/29UP,Tonbridge & Malling Borough Council,7/26/2023,0011046584/1,11046584, 199.37,Scottish Water Business Stream Ltd,01641100,,Estate Management Charge,Land Review,D40PS000020400,
http://statistics.data.gov.uk/id/local-authority/29UP,Tonbridge & Malling Borough Council,7/26/2023,0011046585/3,11046585, 1315.69,Royal Mail,00086200,,Purchases,Mailsort Stock Account,K37BR000001002,
http://statistics.data.gov.uk/id/local-authority/29UP,Tonbridge & Malling Borough Council,7/26/2023,0011046585/4,11046585, 6.30,Royal Mail,00086200,,Purchases,Mailsort Stock Account,K37BR000001002,
http://statistics.data.gov.uk/id/local-authority/29UP,Tonbridge & Malling Borough Council,7/26/2023,0011046585/5,11046585, 23.38,Royal Mail,00086200,,Purchases,Mailsort Stock Account,K37BR000001002,
http://statistics.data.gov.uk/id/local-authority/29UP,Tonbridge & Malling Borough Council,7/26/2023,0011046586/3,11046586, 215.52,Initial Washroom Hygiene,00048300,,Laundry - Roller Towels,Cleaning & Security,D21FD000042003,
http://statistics.data.gov.uk/id/local-authority/29UP,Tonbridge & Malling Borough Council,7/26/2023,0011046587/3,11046587, 125.00,Security & Electronic Solutions Ltd,01379500,,BRREP Servicing - CCTV,Leis Man Poult Wood Golf Centr,M15HEP20001952,
http://statistics.data.gov.uk/id/local-authority/29UP,Tonbridge & Malling Borough Council,7/26/2023,0011046588/3,11046588, 480.00,G C Industrial Heating Services,00578100,,BRREP Response - General,Gibson Building East,M15KGP50001997,
http://statistics.data.gov.uk/id/local-authority/29UP,Tonbridge & Malling Borough Council,7/26/2023,0011046589/3,11046589, 140.00,G C Industrial Heating Services,00578100,,BRREP Response - General,Gibson Building West,M15KBP50001997,
http://statistics.data.gov.uk/id/local-authority/29UP,Tonbridge & Malling Borough Council,7/26/2023,0011046590/1,11046590, 1089.00,Learnd UK,01226700,,BRREP BMS System Mntce/Upgrade,Larkfield Leisure Centre,M15HDP20001912,110069931
http://statistics.data.gov.uk/id/local-authority/29UP,Tonbridge & Malling Borough Council,7/26/2023,0011046591/1,11046591, 275.00,BML Building Services Ltd,01505000,,BRREP Response - General,Tonbridge Swimming Pool,M15HBP50001997,110070326
http://statistics.data.gov.uk/id/local-authority/29UP,Tonbridge & Malling Borough Council,7/26/2023,0011046592/1,11046592, 884.00,Broadwater Technologies,01534500,,BRREP Plant renewals,Tonbridge Swimming Pool,M15HBP20001909,110070257
http://statistics.data.gov.uk/id/local-authority/29UP,Tonbridge & Malling Borough Council,7/26/2023,0011046593/1,11046593, 2744.00,Willow Pumps Ltd,00114100,,BRREP Servicing - Pumping Stn,Ton Sportsgrnd Bldgs / Toilets,M15HCP20001931,110070276
http://statistics.data.gov.uk/id/local-authority/29UP,Tonbridge & Malling Borough Council,7/26/2023,0011046594/1,11046594, 222.50,Monitor Pest Control Ltd,01476700,,BRREP Response - General,Tonbridge Castle Gatehouse,M15HKP50001997,110070337
http://statistics.data.gov.uk/id/local-authority/29UP,Tonbridge & Malling Borough Council,7/26/2023,0011046595/1,11046595, 790.00,BML Building Services Ltd,01505000,,BRREP Response - General,Angel Centre,M15HAP50001997,110070244
http://statistics.data.gov.uk/id/local-authority/29UP,Tonbridge & Malling Borough Council,7/26/2023,0011046596/1,11046596, 750.00,BML Building Services Ltd,01505000,,BRREP Response - General,Land Review,M15MAP50001997,110070344
http://statistics.data.gov.uk/id/local-authority/29UP,Tonbridge & Malling Borough Council,7/26/2023,0011046597/1,11046597, 1144.99,Marine And Industrial Pump Services,00062800,662127842,BRREP Plant renewals,Tonbridge Swimming Pool,M15HBP20001909,110070343
http://statistics.data.gov.uk/id/local-authority/29UP,Tonbridge & Malling Borough Council,7/26/2023,0011046598/1,11046598, 133.00,Southern Care Maintenance,01282600,,BRREP Servicing - Diasbled Acc,Tonbridge Castle / CAB,M15KFP20001981,110070303
http://statistics.data.gov.uk/id/local-authority/29UP,Tonbridge & Malling Borough Council,7/26/2023,0011046599/1,11046599, 1000.00,REDACTED PERSONAL DATA,01909100,,Initiatives,UK Shared Prosperity Fund,D52TH000048135,
http://statistics.data.gov.uk/id/local-authority/29UP,Tonbridge & Malling Borough Council,7/26/2023,0011046600/1,11046600, 149.66,EDF Energy Customers plc,01035000,,Electricity,Homelessness,C01AATNHS21002,
http://statistics.data.gov.uk/id/local-authority/29UP,Tonbridge & Malling Borough Council,7/26/2023,0011046601/3,11046601, 283.32,B&Q/Screwfix Direct(TradeUKAccount),00141300,,Cleaning & Domestic Supplies,Cleaning & Security,D21FD000026001,
http://statistics.data.gov.uk/id/local-authority/29UP,Tonbridge & Malling Borough Council,7/26/2023,0011046602/1,11046602, 36.00,The Mayor's Charity Appeal,00943800,,Hospitality,Mayoral & Other Member Support,D29LX000048003,
http://statistics.data.gov.uk/id/local-authority/29UP,Tonbridge & Malling Borough Council,7/26/2023,0011046603/1,11046603, 2000.00,Aylesford Priory Ltd,00944900,702489341,Initiatives,UK Shared Prosperity Fund,D52TH000048135,
http://statistics.data.gov.uk/id/local-authority/29UP,Tonbridge & Malling Borough Council,7/26/2023,0012008788/1,12008788, 4335.20,Bytes Software Services,01676900,823818226,Software Hire & Support,Information Technology,D27KD000044059,410032416
http://statistics.data.gov.uk/id/local-authority/29UP,Tonbridge & Malling Borough Council,7/26/2023,0012008788/2,12008788, 842.46,Bytes Software Services,01676900,823818226,Software Hire & Support,Information Technology,D27KD000044059,410032416
http://statistics.data.gov.uk/id/local-authority/29UP,Tonbridge & Malling Borough Council,7/26/2023,0012008788/3,12008788, 14610.75,Bytes Software Services,01676900,823818226,Software Hire & Support,Information Technology,D27KD000044059,410032416
http://statistics.data.gov.uk/id/local-authority/29UP,Tonbridge & Malling Borough Council,7/26/2023,0012008789/1,12008789, 8000.00,NEC Software Solutions UK Ltd,01073900,202159745,Software Hire & Support,Information Technology,D27KD000044059,410032443
http://statistics.data.gov.uk/id/local-authority/29UP,Tonbridge & Malling Borough Council,7/26/2023,0012008790/1,12008790, 74.95,CCS Media Ltd,00018000,,Purchases,Information Technology,D27KD000040101,410032444
http://statistics.data.gov.uk/id/local-authority/29UP,Tonbridge & Malling Borough Council,7/26/2023,0012008791/1,12008791, 224.85,CCS Media Ltd,00018000,,Purchases,Information Technology,D27KD000040101,410032444
http://statistics.data.gov.uk/id/local-authority/29UP,Tonbridge & Malling Borough Council,7/26/2023,0012008792/3,12008792, 3951.31,Phoenix Software Ltd,00077400,755349015,Software Hire & Support,Information Technology,D27KD000044059,
http://statistics.data.gov.uk/id/local-authority/29UP,Tonbridge & Malling Borough Council,7/26/2023,0012008793/3,12008793, 2828.39,Phoenix Software Ltd,00077400,755349015,Software Hire & Support,Information Technology,D27KD000044059,
http://statistics.data.gov.uk/id/local-authority/29UP,Tonbridge & Malling Borough Council,7/26/2023,0015005825/1,15005825, 650.00,Idox Software Ltd,00962400,,Electronic Elector Responses,Electoral Registration,D31MF000044102,410032420
http://statistics.data.gov.uk/id/local-authority/29UP,Tonbridge & Malling Borough Council,7/26/2023,0015005825/2,15005825, 590.00,Idox Software Ltd,00962400,,Electronic Elector Responses,Electoral Registration,D31MF000044102,410032420
http://statistics.data.gov.uk/id/local-authority/29UP,Tonbridge & Malling Borough Council,7/26/2023,0015005825/3,15005825, 495.00,Idox Software Ltd,00962400,,Electronic Elector Responses,Electoral Registration,D31MF000044102,410032420
http://statistics.data.gov.uk/id/local-authority/29UP,Tonbridge & Malling Borough Council,7/26/2023,0015005825/4,15005825, 4490.50,Idox Software Ltd,00962400,,Electronic Elector Responses,Electoral Registration,D31MF000044102,410032420
http://statistics.data.gov.uk/id/local-authority/29UP,Tonbridge & Malling Borough Council,7/26/2023,0021038688/1,21038688, 40.00,Weddle and Co,00714900,,Maintenance of Grounds,Open Spaces & Amenity Areas,B22LE000020402,210057278
http://statistics.data.gov.uk/id/local-authority/29UP,Tonbridge & Malling Borough Council,7/26/2023,0021038689/7,21038689, 23.68,B&Q/Screwfix Direct(TradeUKAccount),00141300,,Purchases,Open Spaces & Amenity Areas,B22LE000040101,
http://statistics.data.gov.uk/id/local-authority/29UP,Tonbridge & Malling Borough Council,7/26/2023,0021038690/1,21038690, 1717.00,GI Carpets Ltd,00953500,,Initial Furniture & Equipment,Capital Renewals Leisure,P05KGBC0109906,210057269
http://statistics.data.gov.uk/id/local-authority/29UP,Tonbridge & Malling Borough Council,7/26/2023,0021038691/1,21038691, 597.00,GI Carpets Ltd,00953500,,Initial Furniture & Equipment,Capital Renewals Leisure,P05KGBC0109906,210057268
http://statistics.data.gov.uk/id/local-authority/29UP,Tonbridge & Malling Borough Council,7/26/2023,0021038692/1,21038692, 350.00,Flash Mobile Welding Services Ltd,01189200,,Maintenance of Grounds,Open Spaces & Amenity Areas,B22LE000020402,210057187
http://statistics.data.gov.uk/id/local-authority/29UP,Tonbridge & Malling Borough Council,7/26/2023,0021038693/1,21038693, 165.19,Landscape Services Ltd,00057600,,Grounds Maintenance Contract,Cemetery,B26MP000050103,
http://statistics.data.gov.uk/id/local-authority/29UP,Tonbridge & Malling Borough Council,7/26/2023,0022027921/1,22027921, 364.00,Tonbridge Baptist Church,00401200,,Healthy Living Initiatives,Public Health - Healthy Living,H40SYVH0048145,220003310
http://statistics.data.gov.uk/id/local-authority/29UP,Tonbridge & Malling Borough Council,7/26/2023,0022027922/1,22027922, 1088.10,The Helping Hand Company,00766500,,Abatement Initiatives,Street Scene,H23SD000044006,220003349
http://statistics.data.gov.uk/id/local-authority/29UP,Tonbridge & Malling Borough Council,7/26/2023,0022027922/2,22027922, 1530.10,The Helping Hand Company,00766500,,Abatement Initiatives,Street Scene,H23SD000044006,220003349
http://statistics.data.gov.uk/id/local-authority/29UP,Tonbridge & Malling Borough Council,7/26/2023,0022027922/3,22027922, 1199.90,The Helping Hand Company,00766500,,Abatement Initiatives,Street Scene,H23SD000044006,220003349
http://statistics.data.gov.uk/id/local-authority/29UP,Tonbridge & Malling Borough Council,7/26/2023,0022027923/3,22027923, 490.00,Countrystyle Group,00835900,781981681,Collection of Card,Dry Recycling,H34SR000054008,
http://statistics.data.gov.uk/id/local-authority/29UP,Tonbridge & Malling Borough Council,7/26/2023,0022027924/1,22027924, 26.41,Scottish Water Business Stream Ltd,01641100,,Sewerage Charges,Public Conveniences,H22SCH00424003,
http://statistics.data.gov.uk/id/local-authority/29UP,Tonbridge & Malling Borough Council,7/26/2023,0022027925/3,22027925, 68.54,British Telecommunications Plc,00012800,,Purchases,Homelessness,C01AATNPR40101,
http://statistics.data.gov.uk/id/local-authority/29UP,Tonbridge & Malling Borough Council,7/26/2023,0022027926/3,22027926, 180.00,Britains Limited,01743900,,Repairs & Mtce to Buildings,Homelessness,C01AATNHS20101,
http://statistics.data.gov.uk/id/local-authority/29UP,Tonbridge & Malling Borough Council,7/26/2023,0022027927/1,22027927, 300.00,BML Building Services Ltd,01505000,,Repairs & Mtce to Buildings,Homelessness,C01AATNPR20101,220003365
http://statistics.data.gov.uk/id/local-authority/29UP,Tonbridge & Malling Borough Council,7/26/2023,0022027928/1,22027928, 90.00,BML Building Services Ltd,01505000,,Repairs & Mtce to Buildings,Homelessness,C01AATNHS20101,220003364
http://statistics.data.gov.uk/id/local-authority/29UP,Tonbridge & Malling Borough Council,7/26/2023,0022027929/3,22027929, 300.00,BML Building Services Ltd,01505000,,Repairs & Mtce to Buildings,Homelessness,C01AATNPR20101,
http://statistics.data.gov.uk/id/local-authority/29UP,Tonbridge & Malling Borough Council,7/26/2023,0022027930/1,22027930, 400.00,BML Building Services Ltd,01505000,,Repairs & Mtce to Buildings,Homelessness,C01AATNHS20101,220003364
http://statistics.data.gov.uk/id/local-authority/29UP,Tonbridge & Malling Borough Council,7/26/2023,0022027931/3,22027931, 2210.00,Centennial Property Ltd,01901000,,Temporary Accommodation,Homelessness,C01AA000044051,
http://statistics.data.gov.uk/id/local-authority/29UP,Tonbridge & Malling Borough Council,7/26/2023,0022027932/1,22027932, 1080.00,1st  Steps Housing Kent,01716100,,Temporary Accommodation,Homelessness,C01AA000044051,
http://statistics.data.gov.uk/id/local-authority/29UP,Tonbridge & Malling Borough Council,7/26/2023,0022027933/1,22027933, 6300.00,House to Home Lettings Ltd ,01647600,,Temporary Accommodation,Homelessness,C01AA000044051,
http://statistics.data.gov.uk/id/local-authority/29UP,Tonbridge & Malling Borough Council,7/26/2023,0022027934/1,22027934, 936.00,Town & Country Housing Group,01385400,,Other Expenses,Disabled Facilities Grant Mand,P03AC000009908,
http://statistics.data.gov.uk/id/local-authority/29UP,Tonbridge & Malling Borough Council,7/26/2023,0022027935/1,22027935, 5700.00,Dolphin Stairlifts,00698900,,Other Expenses,Disabled Facilities Grant Mand,P03AC000009908,
http://statistics.data.gov.uk/id/local-authority/29UP,Tonbridge & Malling Borough Council,7/26/2023,0022027936/1,22027936, 846.66,Town & Country Housing Group,01385400,,Other Expenses,Disabled Facilities Grant Mand,P03AC000009908,
http://statistics.data.gov.uk/id/local-authority/29UP,Tonbridge & Malling Borough Council,7/26/2023,0022027937/1,22027937, 5879.57,Accessible Solutions LTD,01539700,,Other Expenses,Disabled Facilities Grant Mand,P03AC000009908,
http://statistics.data.gov.uk/id/local-authority/29UP,Tonbridge & Malling Borough Council,7/26/2023,0022027938/1,22027938, 2062.56,Town & Country Housing Group,01385400,,Other Expenses,Disabled Facilities Grant Mand,P03AC000009908,
http://statistics.data.gov.uk/id/local-authority/29UP,Tonbridge & Malling Borough Council,7/26/2023,0022027939/1,22027939, 15835.00,Ascendit Lifts Ltd,00446600,,Other Expenses,Disabled Facilities Grant Mand,P03AC000009908,
http://statistics.data.gov.uk/id/local-authority/29UP,Tonbridge & Malling Borough Council,7/26/2023,0022027940/1,22027940, 9405.00,Kent Accommodation Ltd,01722000,,Temporary Accommodation,Homelessness,C01AA000044051,
http://statistics.data.gov.uk/id/local-authority/29UP,Tonbridge & Malling Borough Council,7/26/2023,0022027941/1,22027941, 854.00,Kent Housing,01503200,,Temporary Accommodation,Homelessness,C01AA000044051,
http://statistics.data.gov.uk/id/local-authority/29UP,Tonbridge & Malling Borough Council,7/26/2023,0022027942/1,22027942, 38939.00,Paramount Independent Property Suppliers,01595300,,Temporary Accommodation,Homelessness,C01AA000044051,
http://statistics.data.gov.uk/id/local-authority/29UP,Tonbridge & Malling Borough Council,7/26/2023,0022027943/1,22027943, 4200.00,Premier Property Providers,01785400,,Temporary Accommodation,Homelessness,C01AA000044051,
http://statistics.data.gov.uk/id/local-authority/29UP,Tonbridge & Malling Borough Council,7/26/2023,0022027944/3,22027944, 434.91,Premier Inn,01217400,,Temporary Accommodation,Homelessness,C01AA000044051,
http://statistics.data.gov.uk/id/local-authority/29UP,Tonbridge & Malling Borough Council,7/26/2023,0022027945/3,22027945, 9666.00,Simon Niblett Lettings,00072600,,Temporary Accommodation,Homelessness,C01AA000044051,
http://statistics.data.gov.uk/id/local-authority/29UP,Tonbridge & Malling Borough Council,7/26/2023,0022027946/3,22027946, 1650.00,Simon Niblett Lettings,00072600,,Temporary Accommodation,Homelessness,C01AA000044051,
http://statistics.data.gov.uk/id/local-authority/29UP,Tonbridge & Malling Borough Council,7/26/2023,0022027947/3,22027947, 495.00,Simon Niblett Lettings,00072600,,Temporary Accommodation,Homelessness,C01AA000044051,
http://statistics.data.gov.uk/id/local-authority/29UP,Tonbridge & Malling Borough Council,7/26/2023,0022027948/1,22027948, 2610.00,Simply Rented Ltd ,01691400,,Temporary Accommodation,Homelessness,C01AA000044051,
http://statistics.data.gov.uk/id/local-authority/29UP,Tonbridge & Malling Borough Council,7/26/2023,0022027949/1,22027949, 16440.00,Smart Property Professionals,01815100,,Temporary Accommodation,Homelessness,C01AA000044051,
http://statistics.data.gov.uk/id/local-authority/29UP,Tonbridge & Malling Borough Council,7/26/2023,0022027950/1,22027950, 2486.45,The Care Group-Housing & Care Trust,01699600,,Temporary Accommodation,Homelessness,C01AA000044051,
http://statistics.data.gov.uk/id/local-authority/29UP,Tonbridge & Malling Borough Council,7/26/2023,0022027951/1,22027951, 12241.00,SPA CAFFE LIMITED,00127100,,Temporary Accommodation,Homelessness,C01AA000044051,
http://statistics.data.gov.uk/id/local-authority/29UP,Tonbridge & Malling Borough Council,7/26/2023,0022027952/1,22027952, 23905.50,Social & Community Care,01768400,,Temporary Accommodation,Homelessness,C01AA000044051,
http://statistics.data.gov.uk/id/local-authority/29UP,Tonbridge & Malling Borough Council,7/26/2023,0022027953/1,22027953, 6630.00,Less Homeless Ltd,01489300,,Temporary Accommodation,Homelessness,C01AA000044051,
http://statistics.data.gov.uk/id/local-authority/29UP,Tonbridge & Malling Borough Council,7/26/2023,0031019608/1,31019608, 238.80,Flowbird Smart City UK Limited,00898700,,Maintenance - General,Parking Off-Street,E10HA000040135,310043094
http://statistics.data.gov.uk/id/local-authority/29UP,Tonbridge & Malling Borough Council,7/26/2023,0031019608/2,31019608, 15.00,Flowbird Smart City UK Limited,00898700,,Maintenance - General,Parking Off-Street,E10HA000040135,310043094
http://statistics.data.gov.uk/id/local-authority/29UP,Tonbridge & Malling Borough Council,7/26/2023,0031019608/3,31019608, 10.00,Flowbird Smart City UK Limited,00898700,,Maintenance - General,Parking On-Street,E10HD000040135,310043094
http://statistics.data.gov.uk/id/local-authority/29UP,Tonbridge & Malling Borough Council,7/26/2023,0031019608/4,31019608, 159.20,Flowbird Smart City UK Limited,00898700,,Maintenance - General,Parking On-Street,E10HD000040135,310043094
http://statistics.data.gov.uk/id/local-authority/29UP,Tonbridge & Malling Borough Council,7/26/2023,0031019609/1,31019609, 9272.00,Keyline Northfleet,01853600,,Other Expenses,Car Park Imp Rolling Programme,P01AB000009908,310043058
http://statistics.data.gov.uk/id/local-authority/29UP,Tonbridge & Malling Borough Council,7/26/2023,0031019609/2,31019609, 303.66,Keyline Northfleet,01853600,,Other Expenses,Car Park Imp Rolling Programme,P01AB000009908,310043058
http://statistics.data.gov.uk/id/local-authority/29UP,Tonbridge & Malling Borough Council,7/26/2023,0031019609/3,31019609, 9266.00,Keyline Northfleet,01853600,,Other Expenses,Car Park Imp Rolling Programme,P01AB000009908,310043058
http://statistics.data.gov.uk/id/local-authority/29UP,Tonbridge & Malling Borough Council,7/26/2023,0031019610/1,31019610, 500.00,Traffic Enforcement Centre,00604200,,Adjudication & Enforcement Ser,Parking Off-Street,E10HA000044230,
http://statistics.data.gov.uk/id/local-authority/29UP,Tonbridge & Malling Borough Council,7/26/2023,0031019610/2,31019610, 500.00,Traffic Enforcement Centre,00604200,,Adjudication & Enforcement Ser,Parking On-Street,E10HD000044230,
http://statistics.data.gov.uk/id/local-authority/29UP,Tonbridge & Malling Borough Council,7/26/2023,0032010338/3,32010338, 2137.50,Vivid Resourcing,01773700,,Temporary Staff,Planning Sals&Overheads,D01AJDJ0111300,
http://statistics.data.gov.uk/id/local-authority/29UP,Tonbridge & Malling Borough Council,7/26/2023,0032010339/3,32010339, 1250.00,Tunbridge Wells Borough Council,00844600,,Conservation,Conservation,A01AG000056002,
http://statistics.data.gov.uk/id/local-authority/29UP,Tonbridge & Malling Borough Council,7/26/2023,0032010340/1,32010340, 200.00,P K Saunders Electrical Ltd,01900800,,Competent Persons Schemes,Building Control,A01AD000048116,
http://statistics.data.gov.uk/id/local-authority/29UP,Tonbridge & Malling Borough Council,7/26/2023,0032010341/3,32010341, 1647.00,The Oyster Partnership,01196400,,Temporary Staff,Planning Sals&Overheads,D01AJDJ0111300,
http://statistics.data.gov.uk/id/local-authority/29UP,Tonbridge & Malling Borough Council,7/26/2023,0032010342/3,32010342, 2250.00,G2 Recruitment Solutions,01786000,,Temporary Staff,Planning Sals&Overheads,D01AJDJ0011300,
http://statistics.data.gov.uk/id/local-authority/29UP,Tonbridge & Malling Borough Council,7/26/2023,0032010343/3,32010343, 1504.00,Carrington West Limited,01844500,,Temporary Staff,Planning Sals&Overheads,D01AJDJ0111300,
http://statistics.data.gov.uk/id/local-authority/29UP,Tonbridge & Malling Borough Council,7/26/2023,0032010344/1,32010344, 195.00,East Malling & Larkfield Parish Council,00030200,,Payments,S106 - Commuted Sums,M04AD000001001,
http://statistics.data.gov.uk/id/local-authority/29UP,Tonbridge & Malling Borough Council,7/26/2023,0032010345/3,32010345, 6210.00,TSC Designs,01602800,359305975,Professional Fees,Building Control,A01AD000044001,
http://statistics.data.gov.uk/id/local-authority/29UP,Tonbridge & Malling Borough Council,7/26/2023,0041035692/1,41035692, 3.97,Amazon EU SARL,01738400,,Stationery,Finance Sals&Overheads,D01AF000043003,410032442
http://statistics.data.gov.uk/id/local-authority/29UP,Tonbridge & Malling Borough Council,7/26/2023,0041035693/1,41035693, 8.74,Amazon EU SARL,01738400,,Stationery,Finance Sals&Overheads,D01AF000043003,410032442
http://statistics.data.gov.uk/id/local-authority/29UP,Tonbridge & Malling Borough Council,7/26/2023,0041035706/3,41035706, 1081.14,Morgan Hunt UK Ltd,01086900,,Temporary Staff,Finance Sals&Overheads,D01AFDF1111300,
http://statistics.data.gov.uk/id/local-authority/29UP,Tonbridge & Malling Borough Council,7/26/2023,0041035707/3,41035707, 450.00,Airey Consultancy Services Ltd,01760800,,Temporary Staff,Finance Sals&Overheads,D01AFDF1111300,
http://statistics.data.gov.uk/id/local-authority/29UP,Tonbridge & Malling Borough Council,7/26/2023,0041035708/3,41035708, 48594.00,Kent County Council,00322500,,Temporary Staff,Finance Sals&Overheads,D01AFDF0611300,
http://statistics.data.gov.uk/id/local-authority/29UP,Tonbridge & Malling Borough Council,7/26/2023,0041035709/3,41035709, 1963.03,Rundle & Co Ltd,00087200,,Bailiffs Commission,Local Revenue & NNDR Collect,D41QA000044075,
http://statistics.data.gov.uk/id/local-authority/29UP,Tonbridge & Malling Borough Council,7/26/2023,0041035710/3,41035710, 118.08,Maidstone Borough Council,01173700,,Bailiffs Commission,Local Revenue & NNDR Collect,D41QA000044075,
http://statistics.data.gov.uk/id/local-authority/29UP,Tonbridge & Malling Borough Council,7/26/2023,0041035711/3,41035711, 2072.21,Maidstone Borough Council,01173700,,Bailiffs Commission,Local Revenue & NNDR Collect,D41QA000044075,
http://statistics.data.gov.uk/id/local-authority/29UP,Tonbridge & Malling Borough Council,7/26/2023,0041035713/1,41035713, 43.89,REDACTED PERSONAL DATA,01909700,,Basic Pay,Personnel Sals&Overheads,D01ABDB0311110,
http://statistics.data.gov.uk/id/local-authority/29UP,Tonbridge & Malling Borough Council,7/26/2023,0041035714/1,41035714, 1650.00,REDACTED PERSONAL DATA,01909800,,Temporary Accommodation,Homelessness,C01AA000044051,
http://statistics.data.gov.uk/id/local-authority/29UP,Tonbridge & Malling Borough Council,7/28/2023,0041035725/1,41035725, 394.00,Carpet Giant ,01645200,,Repairs & Mtce to Buildings,Homelessness,C01AATNHS20101,
http://statistics.data.gov.uk/id/local-authority/29UP,Tonbridge & Malling Borough Council,7/28/2023,0041035725/2,41035725, 270.00,Carpet Giant ,01645200,,Repairs & Mtce to Buildings,Homelessness,C01AATNHS20101,
http://statistics.data.gov.uk/id/local-authority/29UP,Tonbridge & Malling Borough Council,7/31/2023,0041035726/1,41035726, 68.00,National Westminster Bank Plc,00069400,,Bank Charges,Banking Arrangements,D43QK000044222,
http://statistics.data.gov.uk/id/local-authority/29UP,Tonbridge & Malling Borough Council,7/31/2023,0041035727/1,41035727, 63.87,WorldPay ,01568000,,Credit Card Commission,Banking Arrangements,D43QK000044082,
http://statistics.data.gov.uk/id/local-authority/29UP,Tonbridge & Malling Borough Council,7/31/2023,0041035728/1,41035728, 205.41,WorldPay ,01568000,,Credit Card Commission,Banking Arrangements,D43QK000044082,
http://statistics.data.gov.uk/id/local-authority/29UP,Tonbridge & Malling Borough Council,7/31/2023,0041035729/1,41035729, 401.51,WorldPay ,01568000,,Credit Card Commission,Banking Arrangements,D43QK000044082,
http://statistics.data.gov.uk/id/local-authority/29UP,Tonbridge & Malling Borough Council,7/31/2023,0041035729/2,41035729, 63.71,WorldPay ,01568000,,Credit Card Commission,Banking Arrangements,D43QK000044082,
